Workbook

Sheet MENU
A6: C1
A7: =LEFT(C7,4) -> 
A10: C5. | C10: C5. ELECTORES POR PAÍS DE ORIGEN
C25: Observaciones al
C26: correo electrónico: dejecutiva@tse.go.cr
A27: =LEFT(C27,4) -> 

Sheet 1
A1: CUADRO 1
A2: COSTA RICA: TOTAL Y VARIACIÓN DEL ELECTORADO
A3: ENTRE DICIEMBRE 2018 Y DICIEMBRE 2019
A4: SEGÚN PROVINCIA Y SEXO
A6: Provincia y sexo | B6: Padrón Nacional Electoral | E6: Variación
B7: Diciembre 2018 | C7: Diciembre 2019 | E7: Absoluto | F7: Porcentaje
A9: Costa Rica | B9: =B13+B17+B21+B25+B29+B33+B37+B41 -> 3384720 | C9: =C13+C17+C21+C25+C29+C33+C37+C41 -> 3438555 | E9: =C9-B9 -> 53835 | F9: =E9/B9*100 -> 1.590530384
A10: Hombres | B10: 1685453 | C10: 1711231 | E10: =C10-B10 -> 25778 | F10: =E10/B10*100 -> 1.529440453
A11: Mujeres | B11: 1699267 | C11: 1727324 | E11: =C11-B11 -> 28057 | F11: =E11/B11*100 -> 1.65112369
A13: San José | B13: =SUM(B14:B15) -> 1127925 | C13: =+C14+C15 -> 1139884 | E13: =C13-B13 -> 11959 | F13: =E13/B13*100 -> 1.060265532
A14: Hombres | B14: 549379 | C14: 554947 | E14: =C14-B14 -> 5568 | F14: =E14/B14*100 -> 1.013507979
A15: Mujeres | B15: 578546 | C15: 584937 | E15: =C15-B15 -> 6391 | F15: =E15/B15*100 -> 1.104665835
A17: Alajuela | B17: =+B18+B19 -> 645313 | C17: =+C18+C19 -> 657175 | E17: =C17-B17 -> 11862 | F17: =E17/B17*100 -> 1.838177753
A18: Hombres | B18: 325249 | C18: 331017 | E18: =C18-B18 -> 5768 | F18: =E18/B18*100 -> 1.773410525
A19: Mujeres | B19: 320064 | C19: 326158 | E19: =C19-B19 -> 6094 | F19: =E19/B19*100 -> 1.903994201
A21: Cartago | B21: =+B22+B23 -> 394101 | C21: =+C22+C23 -> 399475 | E21: =C21-B21 -> 5374 | F21: =E21/B21*100 -> 1.363609836
A22: Hombres | B22: 195726 | C22: 198274 | E22: =C22-B22 -> 2548 | F22: =E22/B22*100 -> 1.301819891
A23: Mujeres | B23: 198375 | C23: 201201 | E23: =C23-B23 -> 2826 | F23: =E23/B23*100 -> 1.424574669
A25: Heredia | B25: =+B26+B27 -> 339262 | C25: =+C26+C27 -> 344746 | E25: =C25-B25 -> 5484 | F25: =E25/B25*100 -> 1.616449823
A26: Hombres | B26: 166972 | C26: 169424 | E26: =C26-B26 -> 2452 | F26: =E26/B26*100 -> 1.46850969
A27: Mujeres | B27: 172290 | C27: 175322 | E27: =C27-B27 -> 3032 | F27: =E27/B27*100 -> 1.759823553
A29: Guanacaste | B29: =+B30+B31 -> 245992 | C29: =+C30+C31 -> 250585 | E29: =C29-B29 -> 4593 | F29: =E29/B29*100 -> 1.867133891
A30: Hombres | B30: 123993 | C30: 126246 | E30: =C30-B30 -> 2253 | F30: =E30/B30*100 -> 1.817038059
A31: Mujeres | B31: 121999 | C31: 124339 | E31: =C31-B31 -> 2340 | F31: =E31/B31*100 -> 1.918048509
A33: Puntarenas | B33: =+B34+B35 -> 316832 | C33: =+C34+C35 -> 322594 | E33: =C33-B33 -> 5762 | F33: =E33/B33*100 -> 1.818629431
A34: Hombres | B34: 162007 | C34: 164936 | E34: =C34-B34 -> 2929 | F34: =E34/B34*100 -> 1.80794657
A35: Mujeres | B35: 154825 | C35: 157658 | E35: =C35-B35 -> 2833 | F35: =E35/B35*100 -> 1.829807848
A37: Limón | B37: =+B38+B39 -> 278657 | C37: =+C38+C39 -> 283879 | E37: =C37-B37 -> 5222 | F37: =E37/B37*100 -> 1.873988452
A38: Hombres | B38: 143151 | C38: 145731 | E38: =C38-B38 -> 2580 | F38: =E38/B38*100 -> 1.802292684
A39: Mujeres | B39: 135506 | C39: 138148 | E39: =C39-B39 -> 2642 | F39: =E39/B39*100 -> 1.949729163
A41: En el extranjero 1/ | B41: =+B42+B43 -> 36638 | C41: =+C42+C43 -> 40217 | E41: =C41-B41 -> 3579 | F41: =E41/B41*100 -> 9.768546318
A42: Hombres | B42: 18976 | C42: 20656 | E42: =C42-B42 -> 1680 | F42: =E42/B42*100 -> 8.853288364
A43: Mujeres | B43: 17662 | C43: 19561 | E43: =C43-B43 -> 1899 | F43: =E43/B43*100 -> 10.75189673
A46: 1/ Costarricenses inscritos(as) que pueden ejercer el voto en extranjero para designar los puestos de Presidencia y Vicepresidencias, así como en consultas populares de orden nacional, según el artículo 187 del Código Electoral.
A48: Fuente: Sección Padrón Electoral del Tribunal Supremo de Elecciones.

Sheet 2
A1: CUADRO 2
A2: COSTA RICA: ELECTORADO EN EL PADRÓN ELECTORAL DE
A3: DICIEMBRE 2018 Y EN EL PADRÓN A DICIEMBRE 2019
A4: POR SEXO, SEGÚN PROVINCIA Y CANTÓN
A6: Provincia y cantón | B6: Padrón Nacional Electoral
B7: Diciembre 2018 | F7: Diciembre 2019
B8: Total | C8: Hombres | D8: Mujeres | F8: Total | G8: Hombres | H8: Mujeres
A9: Costa Rica | B9: =SUM(B10:B17) -> 3384720 | C9: =SUM(C10:C17) -> 1685453 | D9: =SUM(D10:D17) -> 1699267 | E9: =E18+E39+E56+E65+E76+E88+E100 -> 0 | F9: =F18+F39+F56+F65+F76+F88+F100+F107 -> 3438555 | G9: =G18+G39+G56+G65+G76+G88+G100+G107 -> 1711231 | H9: =H18+H39+H56+H65+H76+H88+H100+H107 -> 1727324
A10: San José | B10: =B18 -> 1127925 | C10: =C18 -> 549379 | D10: 578546 | E10: 0 | F10: 1139884 | G10: 554947 | H10: 584937
A11: Alajuela | B11: =B39 -> 645313 | C11: 325249 | D11: 320064 | E11: 0 | F11: 657175 | G11: 331017 | H11: 326158
A12: Cartago | B12: =B56 -> 394101 | C12: 195726 | D12: 198375 | E12: 0 | F12: 399475 | G12: 198274 | H12: 201201
A13: Heredia | B13: =B65 -> 339262 | C13: 166972 | D13: 172290 | E13: 0 | F13: 344746 | G13: 169424 | H13: 175322
A14: Guanacaste | B14: =B76 -> 245992 | C14: 123993 | D14: 121999 | E14: 0 | F14: 250585 | G14: 126246 | H14: 124339
A15: Puntarenas | B15: =B88 -> 316832 | C15: 162007 | D15: 154825 | E15: 0 | F15: 322594 | G15: 164936 | H15: 157658
A16: Limón | B16: =B100 -> 278657 | C16: 143151 | D16: 135506 | E16: 0 | F16: 283879 | G16: 145731 | H16: 138148
A17: En el extranjero 1/ | B17: =B107 -> 36638 | C17: =C107 -> 18976 | D17: =D107 -> 17662 | F17: =F107 -> 40217 | G17: =G107 -> 20656 | H17: =H107 -> 19561
A18: San José | B18: =SUM(C18:D18) -> 1127925 | C18: =SUM(C19:C38) -> 549379 | D18: =SUM(D19:D38) -> 578546 | F18: =SUM(F19:F38) -> 1139884 | G18: =SUM(G19:G38) -> 554947 | H18: =SUM(H19:H38) -> 584937
A19: San José | B19: =+C19+D19 -> 235870 | C19: 113960 | D19: 121910 | F19: =SUM(G19:H19) -> 237491 | G19: 114869 | H19: 122622
A20: Escazú | B20: 47857 | C20: 23411 | D20: 24446 | F20: 48909 | G20: 23879 | H20: 25030
A21: Desamparados | B21: 162267 | C21: 79475 | D21: 82792 | F21: 163721 | G21: 80113 | H21: 83608
A22: Puriscal | B22: 28845 | C22: 14433 | D22: 14412 | F22: 29170 | G22: 14591 | H22: 14579
A23: Tarrazú | B23: 12333 | C23: 6172 | D23: 6161 | F23: 12455 | G23: 6240 | H23: 6215
A24: Aserrí | B24: 43529 | C24: 21785 | D24: 21744 | F24: 43971 | G24: 22002 | H24: 21969
A25: Mora | B25: 21919 | C25: 10804 | D25: 11115 | F25: 22339 | G25: 11013 | H25: 11326
A26: Goicoechea | B26: 90757 | C26: 43488 | D26: 47269 | F26: 91511 | G26: 43751 | H26: 47760
A27: Santa Ana | B27: 36124 | C27: 17651 | D27: 18473 | F27: 37125 | G27: 18118 | H27: 19007
A28: Alajuelita | B28: 51223 | C28: 25379 | D28: 25844 | F28: 51812 | G28: 25678 | H28: 26134
A29: Vázquez de Coronado | B29: 54443 | C29: 26227 | D29: 28216 | F29: 55002 | G29: 26501 | H29: 28501
A30: Acosta | B30: 16924 | C30: 8647 | D30: 8277 | F30: 17156 | G30: 8771 | H30: 8385
A31: Tibás | B31: 56225 | C31: 26308 | D31: 29917 | F31: 56487 | G31: 26430 | H31: 30057
A32: Moravia | B32: 44618 | C32: 21338 | D32: 23280 | F32: 45153 | G32: 21611 | H32: 23542
A33: Montes de Oca | B33: 42741 | C33: 20085 | D33: 22656 | F33: 43075 | G33: 20203 | H33: 22872
A34: Turrubares | B34: 4636 | C34: 2388 | D34: 2248 | F34: 4834 | G34: 2504 | H34: 2330
A35: Dota | B35: 5610 | C35: 2800 | D35: 2810 | F35: 5674 | G35: 2804 | H35: 2870
A36: Curridabat | B36: 49572 | C36: 23756 | D36: 25816 | F36: 50222 | G36: 23944 | H36: 26278
A37: Pérez Zeledón | B37: 113168 | C37: 56588 | D37: 56580 | F37: 114449 | G37: 57204 | H37: 57245
A38: León Cortés Castro | B38: 9264 | C38: 4684 | D38: 4580 | F38: 9328 | G38: 4721 | H38: 4607
A39: Alajuela | B39: =SUM(B40:B55) -> 645313 | C39: =SUM(C40:C55) -> 325249 | D39: =SUM(D40:D55) -> 320064 | F39: =SUM(G39:H39) -> 657175 | G39: =SUM(G40:G55) -> 331017 | H39: =SUM(H40:H55) -> 326158
A40: Alajuela | B40: =+C40+D40 -> 206178 | C40: 104123 | D40: 102055 | F40: 209680 | G40: 105950 | H40: 103730
A41: San Ramón | B41: 65150 | C41: 32372 | D41: 32778 | F41: 66233 | G41: 32892 | H41: 33341
A42: Grecia | B42: 54331 | C42: 26871 | D42: 27460 | F42: 55270 | G42: 27309 | H42: 27961
A43: San Mateo | B43: 4671 | C43: 2408 | D43: 2263 | F43: 4811 | G43: 2478 | H43: 2333
A44: Atenas | B44: 20780 | C44: 10423 | D44: 10357 | F44: 21154 | G44: 10573 | H44: 10581
A45: Naranjo | B45: 32181 | C45: 15914 | D45: 16267 | F45: 32709 | G45: 16203 | H45: 16506
A46: Palmares | B46: 29247 | C46: 14462 | D46: 14785 | F46: 29557 | G46: 14624 | H46: 14933
A47: Poás | B47: 22299 | C47: 11148 | D47: 11151 | F47: 22742 | G47: 11360 | H47: 11382
A48: Orotina | B48: 15968 | C48: 7995 | D48: 7973 | F48: 16274 | G48: 8138 | H48: 8136
A49: San Carlos | B49: 110978 | C49: 56464 | D49: 54514 | F49: 113408 | G49: 57577 | H49: 55831
A50: Zarcero | B50: 9154 | C50: 4522 | D50: 4632 | F50: 9278 | G50: 4581 | H50: 4697
A51: Valverde Vega | B51: 14860 | C51: 7443 | D51: 7417 | F51: 15107 | G51: 7555 | H51: 7552
A52: Upala | B52: 29422 | C52: 15264 | D52: 14158 | F52: 30030 | G52: 15558 | H52: 14472
A53: Los Chiles | B53: 12705 | C53: 6794 | D53: 5911 | F53: 13027 | G53: 6936 | H53: 6091
A54: Guatuso | B54: 11237 | C54: 5828 | D54: 5409 | F54: 11426 | G54: 5929 | H54: 5497
A55: Río Cuarto | B55: 6152 | C55: 3218 | D55: 2934 | F55: 6469 | G55: 3354 | H55: 3115
A56: Cartago | B56: =SUM(B57:B64) -> 394101 | C56: =SUM(C57:C64) -> 195726 | D56: =SUM(D57:D64) -> 198375 | F56: 399475 | G56: =SUM(G57:G64) -> 198274 | H56: =SUM(H57:H64) -> 201201
A57: Cartago | B57: =+C57+D57 -> 123400 | C57: 60828 | D57: 62572 | F57: 125036 | G57: 61578 | H57: 63458
A58: Paraíso | B58: 47512 | C58: 23600 | D58: 23912 | F58: 48167 | G58: 23946 | H58: 24221
A59: La Unión | B59: 71628 | C59: 35282 | D59: 36346 | F59: 72609 | G59: 35687 | H59: 36922
A60: Jiménez | B60: 12227 | C60: 6203 | D60: 6024 | F60: 12404 | G60: 6284 | H60: 6120
A61: Turrialba | B61: 57836 | C61: 28890 | D61: 28946 | F61: 58384 | G61: 29119 | H61: 29265
A62: Alvarado | B62: 10855 | C62: 5417 | D62: 5438 | F62: 11066 | G62: 5528 | H62: 5538
A63: Oreamuno | B63: 36701 | C63: 18087 | D63: 18614 | F63: 37179 | G63: 18309 | H63: 18870
A64: El Guarco | B64: 33942 | C64: 17419 | D64: 16523 | F64: 34630 | G64: 17823 | H64: 16807
A65: Heredia | B65: =SUM(B66:B75) -> 339262 | C65: =SUM(C66:C75) -> 166972 | D65: =SUM(D66:D75) -> 172290 | F65: =SUM(G65:H65) -> 344746 | G65: =SUM(G66:G75) -> 169424 | H65: =SUM(H66:H75) -> 175322
A66: Heredia | B66: =+C66+D66 -> 98074 | C66: 47103 | D66: 50971 | F66: 99320 | G66: 47651 | H66: 51669
A67: Barva | B67: 33371 | C67: 16386 | D67: 16985 | F67: 33992 | G67: 16651 | H67: 17341
A68: Santo Domingo | B68: 34913 | C68: 17150 | D68: 17763 | F68: 35439 | G68: 17367 | H68: 18072
A69: Santa Bárbara | B69: 27265 | C69: 13531 | D69: 13734 | F69: 27612 | G69: 13665 | H69: 13947
A70: San Rafael | B70: 36204 | C70: 18039 | D70: 18165 | F70: 36956 | G70: 18409 | H70: 18547
A71: San Isidro | B71: 16392 | C71: 8243 | D71: 8149 | F71: 16663 | G71: 8344 | H71: 8319
A72: Belén | B72: 19050 | C72: 9389 | D72: 9661 | F72: 19306 | G72: 9523 | H72: 9783
A73: Flores | B73: 17100 | C73: 8285 | D73: 8815 | F73: 17393 | G73: 8417 | H73: 8976
A74: San Pablo | B74: 22366 | C74: 10813 | D74: 11553 | F74: 22755 | G74: 11017 | H74: 11738
A75: Sarapiquí | B75: 34527 | C75: 18033 | D75: 16494 | F75: 35310 | G75: 18380 | H75: 16930
A76: Guanacaste | B76: =SUM(B77:B87) -> 245992 | C76: =SUM(C77:C87) -> 123993 | D76: =SUM(D77:D87) -> 121999 | F76: 250585 | G76: =SUM(G77:G87) -> 126246 | H76: =SUM(H77:H87) -> 124339
A77: Liberia | B77: =+C77+D77 -> 46143 | C77: 23044 | D77: 23099 | F77: 47203 | G77: 23568 | H77: 23635
A78: Nicoya | B78: 41827 | C78: 21033 | D78: 20794 | F78: 42477 | G78: 21365 | H78: 21112
A79: Santa Cruz | B79: 41912 | C79: 21317 | D79: 20595 | F79: 42694 | G79: 21683 | H79: 21011
A80: Bagaces | B80: 14073 | C80: 7077 | D80: 6996 | F80: 14260 | G80: 7167 | H80: 7093
A81: Carrillo | B81: 24979 | C81: 12618 | D81: 12361 | F81: 25517 | G81: 12897 | H81: 12620
A82: Cañas | B82: 19752 | C82: 9863 | D82: 9889 | F82: 20019 | G82: 9968 | H82: 10051
A83: Abangares | B83: 13812 | C83: 7033 | D83: 6779 | F83: 14024 | G83: 7131 | H83: 6893
A84: Tilarán | B84: 15259 | C84: 7626 | D84: 7633 | F84: 15470 | G84: 7742 | H84: 7728
A85: Nandayure | B85: 8506 | C85: 4361 | D85: 4145 | F85: 8650 | G85: 4421 | H85: 4229
A86: La Cruz | B86: 13647 | C86: 6904 | D86: 6743 | F86: 14091 | G86: 7148 | H86: 6943
A87: Hojancha | B87: 6082 | C87: 3117 | D87: 2965 | F87: 6180 | G87: 3156 | H87: 3024
A88: Puntarenas | B88: =SUM(B89:B99) -> 316832 | C88: =SUM(C89:C99) -> 162007 | D88: =SUM(D89:D99) -> 154825 | F88: 322594 | G88: =SUM(G89:G99) -> 164936 | H88: =SUM(H89:H99) -> 157658
A89: Puntarenas | B89: =+C89+D89 -> 87844 | C89: 44865 | D89: 42979 | F89: 88825 | G89: 45366 | H89: 43459
A90: Esparza | B90: 23047 | C90: 11418 | D90: 11629 | F90: 23525 | G90: 11642 | H90: 11883
A91: Buenos Aires | B91: 32385 | C91: 16801 | D91: 15584 | F91: 32950 | G91: 17096 | H91: 15854
A92: Montes de Oro | B92: 10374 | C92: 5179 | D92: 5195 | F92: 10587 | G92: 5256 | H92: 5331
A93: Osa | B93: 22840 | C93: 12012 | D93: 10828 | F93: 23342 | G93: 12298 | H93: 11044
A94: Quepos | B94: 20108 | C94: 10631 | D94: 9477 | F94: 20603 | G94: 10874 | H94: 9729
A95: Golfito | B95: 30236 | C95: 15593 | D95: 14643 | F95: 30734 | G95: 15854 | H95: 14880
A96: Coto Brus | B96: 30632 | C96: 15428 | D96: 15204 | F96: 31226 | G96: 15742 | H96: 15484
A97: Parrita | B97: 12312 | C97: 6339 | D97: 5973 | F97: 12621 | G97: 6513 | H97: 6108
A98: Corredores | B98: 34788 | C98: 17345 | D98: 17443 | F98: 35404 | G98: 17635 | H98: 17769
A99: Garabito | B99: 12266 | C99: 6396 | D99: 5870 | F99: 12777 | G99: 6660 | H99: 6117
A100: Limón | B100: =SUM(B101:B106) -> 278657 | C100: =SUM(C101:C106) -> 143151 | D100: =SUM(D101:D106) -> 135506 | F100: 283879 | G100: =SUM(G101:G106) -> 145731 | H100: =SUM(H101:H106) -> 138148
A101: Limón | B101: =+C101+D101 -> 69962 | C101: 35024 | D101: 34938 | F101: 70958 | G101: 35465 | H101: 35493
A102: Pococí | B102: 93892 | C102: 48688 | D102: 45204 | F102: 95804 | G102: 49811 | H102: 45993
A103: Siquirres | B103: 40838 | C103: 21197 | D103: 19641 | F103: 41285 | G103: 21349 | H103: 19936
A104: Talamanca | B104: 21816 | C104: 11381 | D104: 10435 | F104: 22666 | G104: 11797 | H104: 10869
A105: Matina | B105: 22466 | C105: 11702 | D105: 10764 | F105: 22938 | G105: 11933 | H105: 11005
A106: Guácimo | B106: 29683 | C106: 15159 | D106: 14524 | F106: 30228 | G106: 15376 | H106: 14852
A107: En el extranjero 1/ | B107: =SUM(C107:D107) -> 36638 | C107: 18976 | D107: 17662 | F107: =SUM(G107:H107) -> 40217 | G107: 20656 | H107: 19561
A110: 1/ Costarricenses inscritos(as) que pueden ejercer el voto en extranjero para designar los puestos de Presidencia y Vicepresidencias, así como en consultas populares de orden nacional, según el artículo 187 del Código Electoral.
A111: Fuente: Sección Padrón Electoral del Tribunal Supremo de Elecciones.

Sheet 3
A1: CUADRO 3
A2: COSTA RICA: ELECTORADO POR PROVINCIA, SEGÚN SEXO Y
A3: GRUPO DE EDAD, AL 31 DE DICIEMBRE 2019
A5: Sexo y grupo de edad 1/ | B5: Total | C5: San José | D5: Alajuela | E5: Cartago | F5: Heredia | G5: Guanacaste | H5: Puntarenas | I5: Limón | J5: En el extranjero 2/
A7: Costa Rica | B7: =B25+B43 -> 3438555 | C7: =C25+C43 -> 1139884 | D7: 657175 | E7: 399475 | F7: 344746 | G7: 250585 | H7: 322594 | I7: 283879 | J7: 40217
A8: 17 - 19 | B8: =B26+B44 -> 131454 | C8: 40106 | D8: 26575 | E8: 14884 | F8: 12640 | G8: 10096 | H8: 13487 | I8: 13100 | J8: 566
A9: 20 - 24 | B9: =B27+B45 -> 383196 | C9: 119200 | D9: 75629 | E9: 43757 | F9: 36431 | G9: 29349 | H9: 38385 | I9: 37264 | J9: 3181
A10: 25 - 29 | B10: 393424 | C10: 126249 | D10: 76905 | E10: 46470 | F10: 38185 | G10: 28959 | H10: 37573 | I10: 35652 | J10: 3431
A11: 30 - 34 | B11: 400094 | C11: 129386 | D11: 78468 | E11: 47556 | F11: 39610 | G11: 28682 | H11: 37782 | I11: 34116 | J11: 4494
A12: 35 - 39 | B12: 356141 | C12: 117709 | D12: 66796 | E12: 40944 | F12: 37140 | G12: 25652 | H12: 33634 | I12: 28660 | J12: 5606
A13: 40 - 44 | B13: 304979 | C13: 99886 | D13: 56302 | E13: 36026 | F13: 32202 | G13: 22285 | H13: 28458 | I13: 24639 | J13: 5181
A14: 45 - 49 | B14: 271250 | C14: 87385 | D14: 50236 | E14: 32605 | F14: 27854 | G14: 19641 | H14: 25998 | I14: 23031 | J14: 4500
A15: 50 - 54 | B15: 275032 | C15: 90401 | D15: 52515 | E15: 33068 | F15: 27473 | G15: 19822 | H15: 25798 | I15: 21946 | J15: 4009
A16: 55 - 59 | B16: 259955 | C16: 88801 | D16: 49815 | E16: 30409 | F16: 26359 | G16: 18265 | H16: 23371 | I16: 19580 | J16: 3355
A17: 60 - 64 | B17: 212889 | C17: 75081 | D17: 39732 | E17: 24159 | F17: 21832 | G17: 14980 | H17: 18884 | I17: 15860 | J17: 2361
A18: 65 - 69 | B18: 160372 | C18: 58071 | D18: 29312 | E18: 17790 | F18: 16616 | G18: 11276 | H18: 14105 | I18: 11653 | J18: 1549
A19: 70 - 74 | B19: 112398 | C19: 41545 | D19: 20888 | E19: 12251 | F19: 11281 | G19: 8073 | H19: 9791 | I19: 7659 | J19: 910
A20: 75 - 79 | B20: 77652 | C20: 28286 | D20: 15152 | E20: 8786 | F20: 7550 | G20: 5664 | H20: 6821 | I20: 4889 | J20: 504
A21: 80 - 84 | B21: 51573 | C21: 19145 | D21: 9844 | E21: 5709 | F21: 5004 | G21: 3889 | H21: 4557 | I21: 3143 | J21: 282
A22: 85 - 89 | B22: 29646 | C22: 11306 | D22: 5590 | E22: 3156 | F22: 2841 | G22: 2393 | H22: 2496 | I22: 1690 | J22: 174
A23: 90 y más | B23: 18500 | C23: 7327 | D23: 3416 | E23: 1905 | F23: 1728 | G23: 1559 | H23: 1454 | I23: 997 | J23: 114
A25: Hombres | B25: =SUM(C25:J25) -> 1711231 | C25: =SUM(C26:C41) -> 554947 | D25: =SUM(D26:D41) -> 331017 | E25: 198274 | F25: 169424 | G25: 126246 | H25: 164936 | I25: 145731 | J25: =SUM(J26:J41) -> 20656
A26: 17 - 19 | B26: =SUM(C26:J26) -> 66705 | C26: 20275 | D26: 13558 | E26: 7635 | F26: 6477 | G26: 5134 | H26: 6867 | I26: 6500 | J26: 259
A27: 20 - 24 | B27: =SUM(C27:J27) -> 195432 | C27: 60472 | D27: 38847 | E27: 22365 | F27: 18583 | G27: 14995 | H27: 19564 | I27: 19017 | J27: 1589
A28: 25 - 29 | B28: 200606 | C28: 64123 | D28: 39692 | E28: 23755 | F28: 19523 | G28: 14604 | H28: 18996 | I28: 18256 | J28: 1657
A29: 30 - 34 | B29: 202774 | C29: 64977 | D29: 40491 | E29: 24079 | F29: 19986 | G29: 14510 | H29: 19135 | I29: 17211 | J29: 2385
A30: 35 - 39 | B30: 179422 | C30: 59106 | D30: 34021 | E30: 20496 | F30: 18550 | G30: 13003 | H30: 16878 | I30: 14234 | J30: 3134
A31: 40 - 44 | B31: 153015 | C31: 49863 | D31: 28613 | E31: 17787 | F31: 15976 | G31: 11153 | H31: 14345 | I31: 12473 | J31: 2805
A32: 45 - 49 | B32: 135413 | C32: 42979 | D32: 25051 | E32: 16018 | F32: 13788 | G32: 9857 | H32: 13387 | I32: 11877 | J32: 2456
A33: 50 - 54 | B33: 136647 | C33: 43995 | D33: 26032 | E33: 16317 | F33: 13351 | G33: 10118 | H33: 13301 | I33: 11407 | J33: 2126
A34: 55 - 59 | B34: 128006 | C34: 42435 | D34: 24713 | E34: 14933 | F34: 12723 | G34: 9257 | H34: 12097 | I34: 10185 | J34: 1663
A35: 60 - 64 | B35: 103853 | C35: 35107 | D35: 19715 | E35: 11748 | F35: 10316 | G35: 7533 | H35: 9834 | I35: 8486 | J35: 1114
A36: 65 - 69 | B36: 77300 | C36: 26342 | D36: 14583 | E36: 8484 | F36: 7744 | G36: 5709 | H36: 7411 | I36: 6329 | J36: 698
A37: 70 - 74 | B37: 53302 | C37: 18590 | D37: 10060 | E37: 5815 | F37: 5195 | G37: 3901 | H37: 5181 | I37: 4167 | J37: 393
A38: 75 - 79 | B38: 36079 | C38: 12261 | D38: 7228 | E38: 4121 | F38: 3329 | G38: 2794 | H38: 3518 | I38: 2621 | J38: 207
A39: 80 - 84 | B39: 22995 | C39: 7756 | D39: 4533 | E39: 2568 | F39: 2152 | G39: 1856 | H39: 2406 | I39: 1634 | J39: 90
A40: 85 - 89 | B40: 12509 | C40: 4261 | D40: 2463 | E40: 1381 | F40: 1100 | G40: 1137 | H40: 1256 | I40: 864 | J40: 47
A41: 90 y más | B41: 7173 | C41: 2405 | D41: 1417 | E41: 772 | F41: 631 | G41: 685 | H41: 760 | I41: 470 | J41: 33
A43: Mujeres | B43: =SUM(C43:J43) -> 1727324 | C43: =SUM(C44:C59) -> 584937 | D43: =SUM(D44:D59) -> 326158 | E43: 201201 | F43: 175322 | G43: 124339 | H43: 157658 | I43: 138148 | J43: =SUM(J44:J59) -> 19561
A44: 17 - 19 | B44: =SUM(C44:J44) -> 64749 | C44: 19831 | D44: 13017 | E44: 7249 | F44: 6163 | G44: 4962 | H44: 6620 | I44: 6600 | J44: 307
A45: 20 - 24 | B45: =SUM(C45:J45) -> 187764 | C45: 58728 | D45: 36782 | E45: 21392 | F45: 17848 | G45: 14354 | H45: 18821 | I45: 18247 | J45: 1592
A46: 25 - 29 | B46: 192818 | C46: 62126 | D46: 37213 | E46: 22715 | F46: 18662 | G46: 14355 | H46: 18577 | I46: 17396 | J46: 1774
A47: 30 - 34 | B47: 197320 | C47: 64409 | D47: 37977 | E47: 23477 | F47: 19624 | G47: 14172 | H47: 18647 | I47: 16905 | J47: 2109
A48: 35 - 39 | B48: 176719 | C48: 58603 | D48: 32775 | E48: 20448 | F48: 18590 | G48: 12649 | H48: 16756 | I48: 14426 | J48: 2472
A49: 40 - 44 | B49: 151964 | C49: 50023 | D49: 27689 | E49: 18239 | F49: 16226 | G49: 11132 | H49: 14113 | I49: 12166 | J49: 2376
A50: 45 - 49 | B50: 135837 | C50: 44406 | D50: 25185 | E50: 16587 | F50: 14066 | G50: 9784 | H50: 12611 | I50: 11154 | J50: 2044
A51: 50 - 54 | B51: 138385 | C51: 46406 | D51: 26483 | E51: 16751 | F51: 14122 | G51: 9704 | H51: 12497 | I51: 10539 | J51: 1883
A52: 55 - 59 | B52: =SUM(C52:J52) -> 131949 | C52: 46366 | D52: 25102 | E52: 15476 | F52: 13636 | G52: 9008 | H52: 11274 | I52: 9395 | J52: 1692
A53: 60 - 64 | B53: 109036 | C53: 39974 | D53: 20017 | E53: 12411 | F53: 11516 | G53: 7447 | H53: 9050 | I53: 7374 | J53: 1247
A54: 65 - 69 | B54: 83072 | C54: 31729 | D54: 14729 | E54: 9306 | F54: 8872 | G54: 5567 | H54: 6694 | I54: 5324 | J54: 851
A55: 70 - 74 | B55: 59096 | C55: 22955 | D55: 10828 | E55: 6436 | F55: 6086 | G55: 4172 | H55: 4610 | I55: 3492 | J55: 517
A56: 75 - 79 | B56: 41573 | C56: 16025 | D56: 7924 | E56: 4665 | F56: 4221 | G56: 2870 | H56: 3303 | I56: 2268 | J56: 297
A57: 80 - 84 | B57: 28578 | C57: 11389 | D57: 5311 | E57: 3141 | F57: 2852 | G57: 2033 | H57: 2151 | I57: 1509 | J57: 192
A58: 85 - 89 | B58: 17137 | C58: 7045 | D58: 3127 | E58: 1775 | F58: 1741 | G58: 1256 | H58: 1240 | I58: 826 | J58: 127
A59: 90 y más | B59: 11327 | C59: 4922 | D59: 1999 | E59: 1133 | F59: 1097 | G59: 874 | H59: 694 | I59: 527 | J59: 81
A62: 1/ Incluye las personas menores que tramitarán su cédula y cumplirán 18 años hasta el 2 de febrero de 2020 inclusive. Según el artículo 76 de la Ley 3504: "Ley Orgánica del Tribunal Supremo de Elecciones y del Registro Civil".
A63: 2/ Costarricenses inscritos(as) que pueden ejercer el voto en extranjero para designar los puestos de Presidencia y Vicepresidencias, así como en consultas populares de orden nacional, según el artículo 187 del Código Electoral.
A64: Fuente: Sección Padrón Electoral del Tribunal Supremo de Elecciones.

Sheet G1
H2: GRÁFICO 1
A3: POR MES, SEGÚN PROVINCIA Y SEXO, AL 31 DE DICIEMBRE DE 2018 | H3: COSTA RICA: PORCENTAJE DEL ELECTORADO, POR SEXO Y GRUPO DE EDAD
H4: AL 31 DE DICIEMBRE 2019
A6: GRUPOS DE EDAD | B6: ELECTORES | F6: PORCENTAJE
B7: Total | C7: Hombres | D7: Mujeres | E7: Sin lugar | F7: Hombres | G7: Mujeres
B9: 3438555 | C9: 1711231 | D9: 1727324
A11: Menos de 20 | B11: 131454 | C11: 66705 | D11: 64749 | F11: -3.898071038 | G11: 3.783767358
A12: 20 a 24 | B12: 383196 | C12: 195432 | D12: 187764 | F12: -11.42055047 | G12: 10.972452
A13: 25 a 29 | B13: 393424 | C13: 200606 | D13: 192818 | F13: -11.72290591 | G13: 11.26779494
A14: 30 a 34 | B14: 400094 | C14: 202774 | D14: 197320 | F14: -11.84959833 | G14: 11.5308804
A15: 35 a 39 | B15: 356141 | C15: 179422 | D15: 176719 | F15: -10.48496667 | G15: 10.3270102
A16: 40 a 44 | B16: 304979 | C16: 153015 | D16: 151964 | F16: -8.941808558 | G16: 8.880390783
A17: 45 a 49 | B17: 271250 | C17: 135413 | D17: 135837 | F17: -7.913192316 | G17: 7.937969801
A18: 50 a 54 | B18: 275032 | C18: 136647 | D18: 138385 | F18: -7.985304147 | G18: 8.086868459
A19: 55 a 59 | B19: 259955 | C19: 128006 | D19: 131949 | F19: -7.48034602 | G19: 7.710764941
A20: 60 a 64 | B20: 212889 | C20: 103853 | D20: 109036 | F20: -6.068905951 | G20: 6.371787327
A21: 65 a 69 | B21: 160372 | C21: 77300 | D21: 83072 | F21: -4.517215969 | G21: 4.854517011
A22: 70 a 74 | B22: 112398 | C22: 53302 | D22: 59096 | F22: -3.114833707 | G22: 3.453420374
A23: 75 a 79 | B23: 77652 | C23: 36079 | D23: 41573 | F23: -2.108365265 | G23: 2.429420692
A24: 80 a 84 | B24: 51573 | C24: 22995 | D24: 28578 | F24: -1.343769485 | G24: 1.670025847
A25: 85 a 89 | B25: 29646 | C25: 12509 | D25: 17137 | F25: -0.7309942375 | G25: 1.001442821
A26: 90 y más | B26: 18500 | C26: 7173 | D26: 11327 | F26: -0.4191719294 | G26: 0.661921155
H30: Fuente: Cuadro 3.

Sheet 4
A1: CUADRO 4
A2: COSTA RICA: ELECTORADO EN EL PADRÓN INSCRITO EN EL EXTRANJERO1/
A3: POR SEXO, SEGÚN CONTINENTE Y PAÍS
A4: AL 31 DE DICIEMBRE 2019
A6: Continente y país | B6: Total | D6: Hombres | F6: Mujeres
B7: Absoluto | C7: % | D7: Absoluto | E7: % | F7: Absoluto | G7: %
A9: Total | B9: =B11+B36+B49+B60+B63 -> 40217 | C9: =B9/B$9*100 -> 100 | D9: =D11+D36+D49+D60+D63 -> 20656 | E9: =D9/D$9*100 -> 100 | F9: =F11+F36+F49+F60+F63 -> 19561 | G9: =F9/F$9*100 -> 100
A11: América | B11: =D11+F11 -> 35966 | C11: =B11/B$9*100 -> 89.4298431 | D11: =SUM(D12:D34) -> 18723 | E11: =D11/D$9*100 -> 90.64194423 | F11: =SUM(F12:F34) -> 17243 | G11: =F11/F$9*100 -> 88.14989009
A12: Estados Unidos | B12: 28575 | C12: 71.05204267 | D12: 15127 | E12: 73.23295895 | F12: 13448 | G12: 68.74904146
A13: Canadá | B13: 1251 | C13: 3.11062486 | D13: 704 | E13: 3.408210689 | F13: 547 | G13: 2.796380553
A14: México | B14: 1061 | C14: 2.638187831 | D14: 485 | E14: 2.347986057 | F14: 576 | G14: 2.944634732
A15: Panamá | B15: 1022 | C15: 2.541213915 | D15: 464 | E15: 2.246320682 | F15: 558 | G15: 2.852614897
A16: Nicaragua | B16: 939 | C16: 2.334833528 | D16: 469 | E16: 2.270526723 | F16: 470 | G16: 2.402740146
A17: Guatemala | B17: 494 | C17: 1.228336276 | D17: 211 | E17: 1.021494965 | F17: 283 | G17: 1.446756301
A18: Colombia | B18: 438 | C18: 1.089091678 | D18: 201 | E18: 0.9730828815 | F18: 237 | G18: 1.211594499
A19: Venezuela | B19: 381 | C19: 0.9473605689 | D19: 174 | E19: 0.8423702556 | F19: 207 | G19: 1.058228107
A20: El Salvador | B20: 317 | C20: 0.7882238854 | D20: 141 | E20: 0.6826103796 | F20: 176 | G20: 0.8997495016
A21: Chile | B21: 257 | C21: 0.6390332446 | D21: 123 | E21: 0.595468629 | F21: 134 | G21: 0.6850365523
A22: Honduras | B22: 256 | C22: 0.636546734 | D22: 135 | E22: 0.6535631294 | F22: 121 | G22: 0.6185777823
A23: Argentina | B23: 251 | C23: 0.6241141806 | D23: 121 | E23: 0.5857862122 | F23: 130 | G23: 0.6645877
A24: Perú | B24: 186 | C24: 0.4624909864 | D24: 94 | E24: 0.4550735864 | F24: 92 | G24: 0.4703236031
A25: Ecuador | B25: 148 | C25: 0.3680035806 | D25: 69 | E25: 0.3340433772 | F25: 79 | G25: 0.4038648331
A26: República Dominicana | B26: 142 | C26: 0.3530845165 | D26: 75 | E26: 0.3630906274 | F26: 67 | G26: 0.3425182762
A27: Brasil | B27: 99 | C27: 0.2461645573 | D27: 57 | E27: 0.2759488768 | F27: 42 | G27: 0.2147129492
A28: Bolivia | B28: 40 | C28: 0.09946042718 | D28: 18 | E28: 0.08714175058 | F28: 22 | G28: 0.1124686877
A29: Cuba | B29: 39 | C29: 0.0969739165 | D29: 18 | E29: 0.08714175058 | F29: 21 | G29: 0.1073564746
A30: Paraguay | B30: 28 | C30: 0.06962229903 | D30: 19 | E30: 0.09198295895 | F30: 9 | G30: 0.04600991769
A31: Uruguay | B31: 22 | C31: 0.05470323495 | D31: 14 | E31: 0.06777691712 | F31: 8 | G31: 0.04089770462
A32: Belice | B32: 11 | C32: 0.02735161748 | D32: 3 | E32: 0.0145236251 | F32: 8 | G32: 0.04089770462
A33: Trinidad y Tobago | B33: 4 | C33: 0.009946042718 | D33: 1 | E33: 0.004841208366 | F33: 3 | G33: 0.01533663923
A34: Jamaica | B34: 5 | C34: 0.0124325534 | D34: 0 | E34: 0 | F34: 5 | G34: 0.02556106539
A36: Europa | B36: =D36+F36 -> 3615 | C36: =B36/B$9*100 -> 8.988736107 | D36: =SUM(D37:D47) -> 1613 | E36: =D36/D$9*100 -> 7.808869094 | F36: =SUM(F37:F47) -> 2002 | G36: =F36/F$9*100 -> 10.23465058
A37: España | B37: =D37+F37 -> 990 | C37: =B37/B$9*100 -> 2.461645573 | D37: 444 | E37: =D37/D$9*100 -> 2.149496514 | F37: 546 | G37: =F37/F$9*100 -> 2.79126834
A38: Alemania | B38: 607 | C38: 1.509311982 | D38: 334 | E38: 1.616963594 | F38: 273 | G38: 1.39563417
A39: Francia | B39: 415 | C39: 1.031901932 | D39: 156 | E39: 0.755228505 | F39: 259 | G39: 1.324063187
A40: Suiza | B40: 362 | C40: 0.900116866 | D40: 153 | E40: 0.7407048799 | F40: 209 | G40: 1.068452533
A41: Reino Unido | B41: 336 | C41: 0.8354675883 | D41: 143 | E41: 0.6922927963 | F41: 193 | G41: 0.9866571239
A42: Italia | B42: 311 | C42: 0.7733048213 | D42: 110 | E42: 0.5325329202 | F42: 201 | G42: 1.027554828
A43: Holanda | B43: 259 | C43: 0.644006266 | D43: 110 | E43: 0.5325329202 | F43: 149 | G43: 0.7617197485
A44: Bélgica | B44: 172 | C44: 0.4276798369 | D44: 80 | E44: 0.3872966692 | F44: 92 | G44: 0.4703236031
A45: Austria | B45: 122 | C45: 0.3033543029 | D45: 57 | E45: 0.2759488768 | F45: 65 | G45: 0.33229385
A46: Rusia | B46: 36 | C46: 0.08951438446 | D46: 24 | E46: 0.1161890008 | F46: 12 | G46: 0.06134655692
A47: Turquía | B47: =D47+F47 -> 5 | C47: =B47/B$9*100 -> 0.0124325534 | D47: 2 | E47: =D47/D$9*100 -> 0.009682416731 | F47: 3 | G47: =F47/F$9*100 -> 0.01533663923
A49: Asia | B49: =D49+F49 -> 504 | C49: =B49/B$9*100 -> 1.253201382 | D49: =SUM(D50:D58) -> 253 | E49: =D49/D$9*100 -> 1.224825716 | F49: =SUM(F50:F58) -> 251 | G49: =F49/F$9*100 -> 1.283165482
A50: China | B50: 147 | C50: 0.3655170699 | D50: 84 | E50: 0.4066615027 | F50: 63 | G50: 0.3220694239
A51: Israel | B51: 123 | C51: 0.3058408136 | D51: 53 | E51: 0.2565840434 | F51: 70 | G51: 0.3578549154
A52: Japón | B52: 86 | C52: 0.2138399184 | D52: 36 | E52: 0.1742835012 | F52: 50 | G52: 0.2556106539
A53: Singapur | B53: 47 | C53: 0.1168660019 | D53: 26 | E53: 0.1258714175 | F53: 21 | G53: 0.1073564746
A54: Qatar | B54: 41 | C54: 0.1019469379 | D54: 21 | E54: 0.1016653757 | F54: 20 | G54: 0.1022442615
A55: Corea | B55: 35 | C55: 0.08702787378 | D55: 17 | E55: 0.08230054222 | F55: 18 | G55: 0.09201983539
A56: India | B56: 11 | C56: 0.02735161748 | D56: 6 | E56: 0.02904725019 | F56: 5 | G56: 0.02556106539
A57: Emiratos Árabes Unidos | B57: 12 | C57: 0.02983812815 | D57: 8 | E57: 0.03872966692 | F57: 4 | G57: 0.02044885231
A58: Indonesia | B58: 2 | C58: 0.004973021359 | D58: 2 | E58: 0.009682416731 | F58: 0 | G58: 0
A60: Oceanía | B60: =D60+F60 -> 131 | C60: =B60/B$9*100 -> 0.325732899 | D60: =SUM(D61) -> 67 | E60: =D60/D$9*100 -> 0.3243609605 | F60: =SUM(F61) -> 64 | G60: =F60/F$9*100 -> 0.3271816369
A61: Australia | B61: =D61+F61 -> 131 | C61: =B61/B$9*100 -> 0.325732899 | D61: 67 | E61: =D61/D$9*100 -> 0.3243609605 | F61: 64 | G61: =F61/F$9*100 -> 0.3271816369
A63: África | B63: =D63+F63 -> 1 | C63: =B63/B$9*100 -> 0.00248651068 | D63: =SUM(D64) -> 0 | E63: =D63/D$9*100 -> 0 | F63: =SUM(F64) -> 1 | G63: =F63/F$9*100 -> 0.005112213077
A64: Kenia | B64: =D64+F64 -> 1 | C64: =B64/B$9*100 -> 0.00248651068 | D64: 0 | E64: =D64/D$9*100 -> 0 | F64: 1 | G64: =F64/F$9*100 -> 0.005112213077
A67: 1/ Costarricenses inscritos(as) que pueden ejercer el voto en extranjero para designar los puestos de Presidencia y Vicepresidencias, así como en consultas populares de orden nacional, según el artículo 187 del Código Electoral.
A68: Fuente: Sección Padrón Electoral del Tribunal Supremo de Elecciones.

Sheet 5
A1: CUADRO 5
A2: COSTA RICA: ELECTORADO NATURALIZADO, POR PAÍS DE ORIGEN
A3: SEGÚN SEXO Y GRUPO DE EDAD, AL 31 DE DICIEMBRE 2019
A5: SEXO Y GRUPO DE EDAD | B5: País de origen
B6: Total | C6: Nicaragua | D6: Colombia | E6: El Salvador | F6: Cuba | G6: China | H6: Perú | I6: Panamá | J6: Resto de países
A8: Costa Rica | B8: =SUM(B9:B24) -> 71884 | C8: 36847 | D8: 9952 | E8: 4388 | F8: 2560 | G8: 2221 | H8: 2005 | I8: 1736 | J8: 12175
A9: 17 - 19 | B9: =SUM(C9:J9) -> 444 | C9: =C27+C45 -> 187 | D9: =D27+D45 -> 145 | E9: 14 | F9: 6 | G9: 3 | H9: 13 | I9: 1 | J9: 75
A10: 20 - 24 | B10: =SUM(C10:J10) -> 1781 | C10: =C28+C46 -> 717 | D10: 600 | E10: 42 | F10: 67 | G10: 40 | H10: 36 | I10: 16 | J10: 263
A11: 25 - 29 | B11: 3592 | C11: 2063 | D11: 710 | E11: 84 | F11: 122 | G11: 120 | H11: 61 | I11: 22 | J11: 410
A12: 30 - 34 | B12: 5276 | C12: 3180 | D12: 792 | E12: 137 | F12: 136 | G12: 165 | H12: 113 | I12: 56 | J12: 697
A13: 35 - 39 | B13: 7915 | C13: 4677 | D13: 1255 | E13: 235 | F13: 158 | G13: 210 | H13: 204 | I13: 101 | J13: 1075
A14: 40 - 44 | B14: 8948 | C14: 4675 | D14: 1518 | E14: 534 | F14: 231 | G14: 271 | H14: 261 | I14: 115 | J14: 1343
A15: 45 - 49 | B15: 8950 | C15: 4477 | D15: 1296 | E15: 591 | F15: 333 | G15: 307 | H15: 265 | I15: 204 | J15: 1477
A16: 50 - 54 | B16: 8429 | C16: 4141 | D16: 1237 | E16: 507 | F16: 349 | G16: 241 | H16: 235 | I16: 244 | J16: 1475
A17: 55 - 59 | B17: 6662 | C17: 2996 | D17: 940 | E17: 521 | F17: 338 | G17: 189 | H17: 242 | I17: 234 | J17: 1202
A18: 60 - 64 | B18: 5412 | C18: 2432 | D18: 578 | E18: 531 | F18: 241 | G18: 164 | H18: 216 | I18: 191 | J18: 1059
A19: 65 - 69 | B19: 4600 | C19: 2029 | D19: 398 | E19: 466 | F19: 192 | G19: 152 | H19: 157 | I19: 164 | J19: 1042
A20: 70 - 74 | B20: 3598 | C20: 1655 | D20: 248 | E20: 325 | F20: 135 | G20: 128 | H20: 114 | I20: 170 | J20: 823
A21: 75 - 79 | B21: 2488 | C21: 1297 | D21: 119 | E21: 193 | F21: 106 | G21: 105 | H21: 40 | I21: 90 | J21: 538
A22: 80 - 84 | B22: 1774 | C22: 1027 | D22: 70 | E22: 121 | F22: 74 | G22: 56 | H22: 29 | I22: 52 | J22: 345
A23: 85 - 89 | B23: =SUM(C23:J23) -> 1146 | C23: 687 | D23: 34 | E23: 58 | F23: 35 | G23: 40 | H23: 14 | I23: 53 | J23: 225
A24: 90 y más | B24: =SUM(C24:J24) -> 869 | C24: 607 | D24: 12 | E24: 29 | F24: 37 | G24: 30 | H24: 5 | I24: 23 | J24: 126
A26: Hombres | B26: =SUM(B27:B42) -> 31547 | C26: =SUM(C27:C42) -> 14540 | D26: =SUM(D27:D42) -> 4647 | E26: 1916 | F26: 1425 | G26: 1209 | H26: 1076 | I26: 746 | J26: 5988
A27: 17 - 19 | B27: =SUM(C27:J27) -> 223 | C27: 89 | D27: 78 | E27: 10 | F27: 4 | G27: 0 | H27: 8 | I27: 0 | J27: 34
A28: 20 - 24 | B28: =SUM(C28:J28) -> 867 | C28: 320 | D28: 320 | E28: 20 | F28: 43 | G28: 22 | H28: 14 | I28: 4 | J28: 124
A29: 25 - 29 | B29: 1507 | C29: 758 | D29: 343 | E29: 39 | F29: 75 | G29: 70 | H29: 33 | I29: 2 | J29: 187
A30: 30 - 34 | B30: 1992 | C30: 1080 | D30: 344 | E30: 52 | F30: 58 | G30: 103 | H30: 49 | I30: 18 | J30: 288
A31: 35 - 39 | B31: 3170 | C31: 1691 | D31: 560 | E31: 119 | F31: 76 | G31: 131 | H31: 112 | I31: 35 | J31: 446
A32: 40 - 44 | B32: 3773 | C32: 1780 | D32: 679 | E32: 238 | F32: 122 | G32: 160 | H32: 129 | I32: 47 | J32: 618
A33: 45 - 49 | B33: 3938 | C33: 1810 | D33: 599 | E33: 263 | F33: 178 | G33: 169 | H33: 133 | I33: 89 | J33: 697
A34: 50 - 54 | B34: 3902 | C34: 1815 | D34: 575 | E34: 224 | F34: 205 | G34: 109 | H34: 124 | I34: 112 | J34: 738
A35: 55 - 59 | B35: 2931 | C35: 1137 | D35: 449 | E35: 229 | F35: 201 | G35: 100 | H35: 120 | I35: 107 | J35: 588
A36: 60 - 64 | B36: 2303 | C36: 848 | D36: 258 | E36: 197 | F36: 153 | G36: 91 | H36: 123 | I36: 90 | J36: 543
A37: 65 - 69 | B37: 2094 | C37: 780 | D37: 196 | E37: 191 | F37: 108 | G37: 85 | H37: 94 | I37: 64 | J37: 576
A38: 70 - 74 | B38: 1792 | C38: 742 | D38: 129 | E38: 148 | F38: 85 | G38: 60 | H38: 80 | I38: 71 | J38: 477
A39: 75 - 79 | B39: 1298 | C39: 633 | D39: 66 | E39: 92 | F39: 61 | G39: 53 | H39: 28 | I39: 47 | J39: 318
A40: 80 - 84 | B40: 837 | C40: 468 | D40: 36 | E40: 54 | F40: 35 | G40: 26 | H40: 16 | I40: 28 | J40: 174
A41: 85 - 89 | B41: 516 | C41: 296 | D41: 11 | E41: 29 | F41: 8 | G41: 22 | H41: 10 | I41: 19 | J41: 121
A42: 90 y más | B42: 404 | C42: 293 | D42: 4 | E42: 11 | F42: 13 | G42: 8 | H42: 3 | I42: 13 | J42: 59
A44: Mujeres | B44: =SUM(B45:B60) -> 40337 | C44: 22307 | D44: 5305 | E44: 2472 | F44: 1135 | G44: 1012 | H44: 929 | I44: 990 | J44: 6187
A45: 17 - 19 | B45: =SUM(C45:J45) -> 221 | C45: 98 | D45: 67 | E45: 4 | F45: 2 | G45: 3 | H45: 5 | I45: 1 | J45: 41
A46: 20 - 24 | B46: =SUM(C46:J46) -> 914 | C46: 397 | D46: 280 | E46: 22 | F46: 24 | G46: 18 | H46: 22 | I46: 12 | J46: 139
A47: 25 - 29 | B47: 2085 | C47: 1305 | D47: 367 | E47: 45 | F47: 47 | G47: 50 | H47: 28 | I47: 20 | J47: 223
A48: 30 - 34 | B48: 3284 | C48: 2100 | D48: 448 | E48: 85 | F48: 78 | G48: 62 | H48: 64 | I48: 38 | J48: 409
A49: 35 - 39 | B49: 4745 | C49: 2986 | D49: 695 | E49: 116 | F49: 82 | G49: 79 | H49: 92 | I49: 66 | J49: 629
A50: 40 - 44 | B50: 5175 | C50: 2895 | D50: 839 | E50: 296 | F50: 109 | G50: 111 | H50: 132 | I50: 68 | J50: 725
A51: 45 - 49 | B51: 5012 | C51: 2667 | D51: 697 | E51: 328 | F51: 155 | G51: 138 | H51: 132 | I51: 115 | J51: 780
A52: 50 - 54 | B52: 4527 | C52: 2326 | D52: 662 | E52: 283 | F52: 144 | G52: 132 | H52: 111 | I52: 132 | J52: 737
A53: 55 - 59 | B53: 3731 | C53: 1859 | D53: 491 | E53: 292 | F53: 137 | G53: 89 | H53: 122 | I53: 127 | J53: 614
A54: 60 - 64 | B54: 3109 | C54: 1584 | D54: 320 | E54: 334 | F54: 88 | G54: 73 | H54: 93 | I54: 101 | J54: 516
A55: 65 - 69 | B55: 2506 | C55: 1249 | D55: 202 | E55: 275 | F55: 84 | G55: 67 | H55: 63 | I55: 100 | J55: 466
A56: 70 - 74 | B56: 1806 | C56: 913 | D56: 119 | E56: 177 | F56: 50 | G56: 68 | H56: 34 | I56: 99 | J56: 346
A57: 75 - 79 | B57: 1190 | C57: 664 | D57: 53 | E57: 101 | F57: 45 | G57: 52 | H57: 12 | I57: 43 | J57: 220
A58: 80 - 84 | B58: 937 | C58: 559 | D58: 34 | E58: 67 | F58: 39 | G58: 30 | H58: 13 | I58: 24 | J58: 171
A59: 85 - 89 | B59: 630 | C59: 391 | D59: 23 | E59: 29 | F59: 27 | G59: 18 | H59: 4 | I59: 34 | J59: 104
A60: 90 y más | B60: 465 | C60: 314 | D60: 8 | E60: 18 | F60: 24 | G60: 22 | H60: 2 | I60: 10 | J60: 67
A63: 1/ Incluye las personas menores que tramitarán su cédula y cumplirán 18 años hasta el 2 de febrero de 2020 inclusive. Según el artículo 76 de la Ley 3504: "Ley Orgánica del Tribunal Supremo de Elecciones y del Registro Civil".
A65: Fuente: Sección Padrón Electoral del Tribunal Supremo de Elecciones.

Sheet G2
A2: Costa Rica | E2: GRÁFICO 2
A3: Resto de países | B3: 12175 | C3: 16.93700963 | E3: COSTA RICA: PORCENTAJE DEL ELECTORADO NATURALIZADO
A4: Panamá | B4: 1736 | C4: 2.415001948 | E4: POR PAÍS DE ORIGEN, AL 31 DE DICIEMBRE 2019
A5: Perú | B5: 2005 | C5: 2.789215959
A6: China | B6: 2221 | C6: 3.089700072
A7: Cuba | B7: 2560 | C7: 3.561293195
A8: El Salvador | B8: 4388 | C8: 6.104279116
A9: Colombia | B9: 9952 | C9: 13.84452729
A10: Nicaragua | B10: 36847 | C10: 51.25897279
B11: 71884
A13: Los datos se copian del cuadro respectivo
A14: ya que el total de cada país puede variar | C14: 0
A15: y por tanto la posición dentros del gráfico
C16: 0
C18: 0
C20: 0
C22: 0
C24: 0
C26: 0
C28: 0
C30: 0
E31: Fuente: Cuadro 5.

Sheet 6
A1: CUADRO 6
A2: COSTA RICA: MOVIMIENTOS AL PADRÓN NACIONAL ELECTORAL
A3: POR TIPO DE MOVIMIENTO, SEGÚN MES
A4: AL 31 DE DICIEMBRE 2019
A6: Mes | B6: Padrón Nacional Electoral anterior | D6: Tipo de movimiento | O6: Padrón Nacional Electoral actual 2/
D7: Inclusiones | I7: Exclusiones
D8: Cédulas Primera vez1/ | F8: Cédulas renovadas | I8: Defunción | K8: Cédulas vencidas | M8: Otras
A10: Enero | B10: 3384720 | D10: 10725 | F10: 4672 | I10: 2514 | K10: 5339 | M10: 10 | O10: 3392254
A11: Febrero | B11: 3392254 | D11: 6105 | F11: 2875 | I11: 1045 | K11: 0 | M11: 6 | O11: 3400183
A12: Marzo | B12: 3400183 | D12: 6222 | F12: 2009 | I12: 2897 | K12: 0 | M12: 8 | O12: 3405509
A13: Abril | B13: 3405509 | D13: 5892 | F13: 1108 | I13: 1062 | K13: 0 | M13: 7 | O13: 3411440
A14: Mayo | B14: 3411440 | D14: 7016 | F14: 1047 | I14: 2099 | K14: 0 | M14: 4 | O14: 3417400
A15: Junio | B15: 3417400 | D15: 5958 | F15: 833 | I15: 2014 | K15: 0 | M15: 5 | O15: 3422172
A16: Julio | B16: 3422172 | D16: 7748 | F16: 910 | I16: 2193 | K16: 0 | M16: 8 | O16: 3428629
A17: Agosto | B17: 3428629 | D17: 6289 | F17: 750 | I17: 2229 | K17: 0 | M17: 30 | O17: 3433409
A18: Setiembre | B18: 3433409 | D18: 8271 | F18: 560 | I18: 1983 | K18: 0 | M18: 9 | O18: 3440248
A19: Octubre | B19: 3440248 | D19: 659 | F19: 81 | I19: 1774 | K19: 0 | M19: 9 | O19: 3439205
A20: Noviembre | B20: 3439205 | D20: 10 | F20: 0 | I20: 658 | K20: 0 | M20: 2 | O20: 3438555
A21: Diciembre | B21: 3438555 | D21: 0 | F21: 0 | I21: 0 | K21: 0 | M21: 0 | O21: 3438555
A24: 1/ Incluye nuevos electores, inclusión condicional de nuevos electores y otras inclusiones.
A25: 2/ Incluye al electorado inscrito en Costa Rica y en el extranjero.
A27: Fuente: Sección Padrón Electoral del Tribunal Supremo de Elecciones.

Sheet 7
A1: CUADRO 7
A2: COSTA RICA: SOLICITUDES DE CÉDULA RECIBIDAS, POR CLASE DE SOLICITUD
A3: SEGÚN MES, AL 31 DE DICIEMBRE 2019
A4: (Absoluto y Porcentaje)
A6: Mes | B6: Clase de solicitud
B7: Absoluto | F7: Porcentaje
B8: Total | C8: Primera vez | D8: Duplicado | E8: Traslado | F8: Total | G8: Primera vez | H8: Duplicado | I8: Traslado
A10: TOTAL | B10: =SUM(B12:B23) -> 797392 | C10: =SUM(C12:C23) -> 83099 | D10: =SUM(D12:D23) -> 708739 | E10: =SUM(E12:E23) -> 5554 | F10: =SUM(G10:I10) -> 100 | G10: =C10/$B10*100 -> 10.4213486 | H10: =D10/$B10*100 -> 88.88213075 | I10: =E10/$B10*100 -> 0.6965206573
A12: Enero | B12: =SUM(C12:E12) -> 86051 | C12: 9302 | D12: 76656 | E12: 93 | F12: =SUM(G12:I12) -> 100 | G12: =C12/$B12*100 -> 10.80986857 | H12: =D12/$B12*100 -> 89.08205599 | I12: =E12/$B12*100 -> 0.1080754436
A13: Febrero | B13: =SUM(C13:E13) -> 66851 | C13: 6192 | D13: 60555 | E13: 104 | F13: 100 | G13: =C13/$B13*100 -> 9.262389493 | H13: 90.58204066 | I13: 0.1555698494
A14: Marzo | B14: 68328 | C14: 6702 | D14: 61527 | E14: 99 | F14: 100 | G14: 9.808570425 | H14: 90.04654022 | I14: 0.1448893572
A15: Abril | B15: 53719 | C15: 5996 | D15: 47590 | E15: 133 | F15: 100 | G15: 11.16178633 | H15: 88.59062901 | I15: 0.2475846535
A16: Mayo | B16: 68243 | C16: 6976 | D16: 61102 | E16: 165 | F16: 100 | G16: 10.22229386 | H16: 89.5359231 | I16: 0.24178304
A17: Junio | B17: 62082 | C17: 6077 | D17: 55816 | E17: 189 | F17: 100 | G17: 9.788666602 | H17: 89.90689733 | I17: 0.3044360684
A18: Julio | B18: 73839 | C18: 7690 | D18: 65712 | E18: 437 | F18: 100 | G18: 10.41455058 | H18: 88.99362126 | I18: 0.5918281667
A19: Agosto | B19: 65265 | C19: 6775 | D19: 57961 | E19: 529 | F19: 100 | G19: 10.38075538 | H19: 88.80870298 | I19: 0.8105416379
A20: Setiembre | B20: 75993 | C20: 8551 | D20: 64411 | E20: 3031 | F20: =SUM(G20:I20) -> 100 | G20: 11.25235219 | H20: 84.75912255 | I20: 3.988525259
A21: Octubre | B21: 69719 | C21: 7335 | D21: 61799 | E21: 585 | F21: 100 | G21: 10.52080495 | H21: 88.64011245 | I21: 0.839082603
A22: Noviembre | B22: 60397 | C22: 6590 | D22: 53692 | E22: 115 | F22: 100 | G22: 10.91113797 | H22: 88.89845522 | I22: 0.1904068083
A23: Diciembre | B23: 46905 | C23: 4913 | D23: 41918 | E23: 74 | F23: 100 | G23: 10.47436307 | H23: 89.36787123 | I23: =E23/$B23*100 -> 0.1577656966
A26: Fuente: Sección Solicitudes Cedulares y Coordinación de Servicios Regionales del Tribunal Supremo de Elecciones.

Sheet G3
A2: GRÁFICO 3
A3: COSTA RICA: PORCENTAJE DE SOLICITUDES DE CÉDULA RECIBIDAS | J3: SOLICITUDES CEDULARES RECIBIDAS
A4: POR CLASE DE SOLICITUD, AL 31 DE DICIEMBRE 2019 | J4: TOTAL | K4: 797392
J5: Duplicado | K5: 708739 | L5: 88.88213075
J6: Primera vez | K6: 83099 | L6: 10.4213486
E7: Sin lugar | J7: Traslado | K7: 5554 | L7: 0.6965206573
A30: Fuente: Cuadro 7.

Sheet 8
A1: CUADRO 8
A2: COSTA RICA: SOLICITUDES DE CÉDULA RECIBIDAS, POR CLASE DE SOLICITUD
A3: SEGÚN PROVINCIA, AL 31 DE DICIEMBRE 2019
A4: (Absoluto y Porcentaje)
A6: Provincia | B6: Clase de solicitud
B7: Absoluto | F7: Porcentaje
B8: Total | C8: Primera vez | D8: Duplicado | E8: Traslado | F8: Total | G8: Primera vez | H8: Duplicado | I8: Traslado
A10: Costa Rica | B10: =SUM(C10:E10) -> 797392 | C10: =SUM(C12:C19) -> 83829 | D10: =SUM(D12:D19) -> 708019 | E10: 5544 | F10: 100 | G10: 100 | H10: 100 | I10: 100
A12: San José | B12: =SUM(C12:E12) -> 325168 | C12: 32868 | D12: 290570 | E12: 1730 | F12: =(B12/B$10*100) -> 40.77893934 | G12: =(C12/C$10*100) -> 39.20838851 | H12: =D12/D$10*100 -> 41.0398591 | I12: =E12/E$10*100 -> 31.2049062
A13: Alajuela | B13: =SUM(C13:E13) -> 137805 | C13: 15865 | D13: 120941 | E13: 999 | F13: =(B13/B$10*100) -> 17.2819642 | G13: 18.92543153 | H13: =D13/D$10*100 -> 17.08160374 | I13: 18.01948052
A14: Cartago | B14: 63046 | C14: 6794 | D14: 55985 | E14: 267 | F14: 7.906525272 | G14: 8.104593876 | H14: 7.907273675 | I14: 4.816017316
A15: Heredia | B15: 59333 | C15: 6472 | D15: 52074 | E15: 787 | F15: 7.440882276 | G15: 7.720478593 | H15: 7.354887369 | I15: =E15/E$10*100 -> 14.1955267
A16: Guanacaste | B16: 57148 | C16: 6297 | D16: 50390 | E16: 461 | F16: 7.166863977 | G16: 7.511720288 | H16: 7.117040644 | I16: 8.315295815
A17: Puntarenas | B17: 70505 | C17: 7427 | D17: 62539 | E17: 539 | F17: 8.841949756 | G17: 8.85970249 | H17: 8.832955048 | I17: 9.722222222
A18: Limón | B18: 68549 | C18: 7654 | D18: 60718 | E18: 177 | F18: 8.596650079 | G18: 9.130491835 | H18: 8.57575856 | I18: 3.192640693
A19: Cedulación ambulante | B19: 15838 | C19: 452 | D19: 14802 | E19: 584 | F19: =(B19/B$10*100) -> 1.986225094 | G19: =(C19/C$10*100) -> 0.5391928807 | H19: =D19/D$10*100 -> 2.090621862 | I19: =E19/E$10*100 -> 10.53391053
A22: Fuente: Sección Solicitudes Cedulares y Coordinación de Servicios Regionales del Tribunal Supremo de Elecciones.

Sheet G4
A2: GRÁFICO 4
A3: COSTA RICA: SOLICITUDES DE CÉDULA RECIBIDAS, POR CLASE DE SOLICITUD | L3: PV | M3: DUP | N3: TRASL
A4: SEGÚN PROVINCIA, AL 31 DE DICIEMBRE 2019 | K4: San José | L4: 32868 | M4: 290570 | N4: 1730
K5: Alajuela | L5: 15865 | M5: 120941 | N5: 999
K6: Puntarenas | L6: 7427 | M6: 62539 | N6: 539
K7: Limón | L7: 7654 | M7: 60718 | N7: 177
K8: Cartago | L8: 6794 | M8: 55985 | N8: 267
K9: Heredia | L9: 6472 | M9: 52074 | N9: 787
K10: Guanacaste | L10: 6297 | M10: 50390 | N10: 461 | O10: 797392
K11: Cedulación ambulante | L11: 452 | M11: 14802 | N11: 584
K12: Total | L12: 83829 | M12: 708019 | N12: 5544
L15: Duplicado | M15: Primera vez | N15: Traslado
K16: Cedulación ambulante | L16: 14.802 | M16: 0.452 | N16: 0.584
K17: Guanacaste | L17: 50.39 | M17: 6.297 | N17: 0.461
K18: Heredia | L18: 52.074 | M18: 6.472 | N18: 0.787
K19: Cartago | L19: 55.985 | M19: 6.794 | N19: 0.267
K20: Limón | L20: 60.718 | M20: 7.654 | N20: 0.177
K21: Puntarenas | L21: 62.539 | M21: 7.427 | N21: 0.539
K22: Alajuela | L22: 120.941 | M22: 15.865 | N22: 0.999
K23: San José | L23: 290.57 | M23: 32.868 | N23: 1.73
K24: Total | L24: 708.019 | M24: 83.829 | N24: 5.544
A31: Fuente: Cuadro 8.

Sheet 9
A1: CUADRO 9
A2: COSTA RICA: SOLICITUDES DE CÉDULA RECIBIDAS
A3: POR FUENTE DE INGRESO, SEGÚN MES
A4: AL 31 DE DICIEMBRE 2019
A6: Mes | B6: Fuente de ingreso
B7: Total | C7: Sede central | D7: Oficinas regionales 1/ | E7: Consulados | F7: Servicios ambulantes | G7: Regionalización
A9: TOTAL | B9: =SUM(B11:B22) -> 797392 | C9: 279897 | D9: 489230 | E9: 4221 | F9: 15838 | G9: 8206
A11: Enero | B11: =SUM(C11:G11) -> 86051 | C11: 29986 | D11: 54722 | E11: 192 | F11: 397 | G11: 754
A12: Febrero | B12: =SUM(C12:G12) -> 66851 | C12: 23271 | D12: 41522 | E12: 380 | F12: 1036 | G12: 642
A13: Marzo | B13: 68328 | C13: 23472 | D13: 42026 | E13: 322 | F13: 1549 | G13: 959
A14: Abril | B14: 53719 | C14: 18763 | D14: 33414 | E14: 361 | F14: 505 | G14: 676
A15: Mayo | B15: 68243 | C15: 23118 | D15: 42865 | E15: 300 | F15: 1300 | G15: 660
A16: Junio | B16: 62082 | C16: 21470 | D16: 38278 | E16: 406 | F16: 1220 | G16: 708
A17: Julio | B17: 73839 | C17: 25753 | D17: 44331 | E17: 263 | F17: 2887 | G17: 605
A18: Agosto | B18: 65265 | C18: 23044 | D18: 38776 | E18: 504 | F18: 2140 | G18: 801
A19: Setiembre | B19: 75993 | C19: 25412 | D19: 45579 | E19: 419 | F19: 3715 | G19: 868
A20: Octubre | B20: 69719 | C20: 25361 | D20: 42905 | E20: 335 | F20: 533 | G20: 585
A21: Noviembre | B21: 60397 | C21: 22260 | D21: 36791 | E21: 335 | F21: 330 | G21: 681
A22: Diciembre | B22: 46905 | C22: 17987 | D22: 28021 | E22: 404 | F22: 226 | G22: 267
A25: 1/ El Tribunal Supremo de Elecciones cuenta con 32 Oficinas Regionales.
A27: Fuente: Sección Solicitudes Cedulares y Coordinación de Servicios Regionales del Tribunal Supremo de Elecciones.

Sheet G5
A2: GRÁFICO 5
A3: COSTA RICA: PORCENTAJE DE SOLICITUDES DE CÉDULA RECIBIDAS | J3: SOLICITUDES CEDULARES RECIBIDAS
A4: POR FUENTE DE INGRESO, AL 31 DE DICIEMBRE 2019 | J4: TOTAL | K4: 797392
J5: Oficinas Regionales | K5: 489230 | L5: 61.35376327
J6: Sede Central | K6: 279897 | L6: 35.10155607
E7: Sin lugar | J7: Servicios ambulantes | K7: 15838 | L7: 1.986225094
J8: Regionalización | K8: 8206 | L8: 1.029104882
J9: Consulados | K9: 4221 | L9: 0.5293506832
J11: Chequear que el orden sea de mayor a menor
A29: Fuente: Cuadro 9.

Sheet 10
A2: CUADRO 10
A3: SOLICITUDES DE CÉDULA RECIBIDAS EN LAS OFICINAS REGIONALES
A4: POR MES, SEGÚN OFICINA REGIONAL
A5: AL 31 DE DICIEMBRE 2019
A7: Oficina Regional | B7: Total | C7: Enero | D7: Febrero | E7: Marzo | F7: Abril | G7: Mayo | H7: Junio | I7: Julio | J7: Agosto | K7: Setiembre | L7: Octubre | M7: Noviembre | N7: Diciembre
A9: TOTAL | B9: =SUM(B11:B42) -> 489230 | C9: =SUM(C11:C42) -> 54722 | D9: 41522 | E9: 42026 | F9: 33414 | G9: 42865 | H9: 38278 | I9: 44331 | J9: 38776 | K9: 45579 | L9: 42905 | M9: 36791 | N9: 28021
A11: Alajuela | B11: =SUM(C11:N11) -> 45643 | C11: 4729 | D11: 3660 | E11: 3751 | F11: 2906 | G11: 5746 | H11: 3346 | I11: 4040 | J11: 3689 | K11: 4232 | L11: 3846 | M11: 3522 | N11: 2176
A12: Atenas | B12: 4481 | C12: 494 | D12: 367 | E12: 343 | F12: 269 | G12: 365 | H12: 315 | I12: 418 | J12: 386 | K12: 526 | L12: 409 | M12: 343 | N12: 246
A13: Buenos Aires | B13: 5961 | C13: 545 | D13: 597 | E13: 506 | F13: 409 | G13: 524 | H13: 386 | I13: 565 | J13: 477 | K13: 528 | L13: 545 | M13: 496 | N13: 383
A14: Cañas | B14: 10547 | C14: 1177 | D14: 847 | E14: 852 | F14: 780 | G14: 881 | H14: 762 | I14: 915 | J14: 806 | K14: 1088 | L14: 1055 | M14: 784 | N14: 600
A15: Cartago | B15: 48965 | C15: 5604 | D15: 4091 | E15: 4236 | F15: 3301 | G15: 4151 | H15: 3923 | I15: 4853 | J15: 4039 | K15: 4694 | L15: 3946 | M15: 3470 | N15: 2657
A16: Corredores | B16: 9582 | C16: 1112 | D16: 910 | E16: 749 | F16: 671 | G16: 837 | H16: 678 | I16: 809 | J16: 735 | K16: 905 | L16: 846 | M16: 747 | N16: 583
A17: Coto Brus | B17: 6451 | C17: 757 | D17: 618 | E17: 555 | F17: 449 | G17: 501 | H17: 459 | I17: 529 | J17: 495 | K17: 655 | L17: 582 | M17: 498 | N17: 353
A18: Golfito | B18: 5161 | C18: 736 | D18: 545 | E18: 493 | F18: 351 | G18: 341 | H18: 360 | I18: 510 | J18: 368 | K18: 436 | L18: 410 | M18: 360 | N18: 251
A19: Grecia | B19: =SUM(C19:N19) -> 17973 | C19: 1952 | D19: 1411 | E19: 1386 | F19: 1089 | G19: 1403 | H19: 2640 | I19: 1540 | J19: 1354 | K19: 1536 | L19: 1458 | M19: 1264 | N19: 940
A20: Guatuso | B20: 3122 | C20: 368 | D20: 268 | E20: 309 | F20: 231 | G20: 265 | H20: 244 | I20: 261 | J20: 238 | K20: 330 | L20: 228 | M20: 219 | N20: 161
A21: Heredia | B21: 51055 | C21: 5538 | D21: 4515 | E21: 4484 | F21: 3673 | G21: 4197 | H21: 3966 | I21: 4780 | J21: 4295 | K21: 4242 | L21: 4560 | M21: 3789 | N21: 3016
A22: Jicaral | B22: 2623 | C22: 299 | D22: 218 | E22: 207 | F22: 195 | G22: 201 | H22: 196 | I22: 223 | J22: 207 | K22: 279 | L22: 233 | M22: 219 | N22: 146
A23: Liberia | B23: 22013 | C23: 2409 | D23: 1842 | E23: 1923 | F23: 1494 | G23: 1807 | H23: 1698 | I23: 2067 | J23: 1715 | K23: 2076 | L23: 1925 | M23: 1711 | N23: 1346
A24: Limón | B24: 21363 | C24: 2557 | D24: 1817 | E24: 1794 | F24: 1446 | G24: 1960 | H24: 1543 | I24: 1794 | J24: 1663 | K24: 2014 | L24: 1880 | M24: 1650 | N24: 1245
A25: Los Chiles | B25: 3083 | C25: 343 | D25: 301 | E25: 292 | F25: 213 | G25: 281 | H25: 212 | I25: 257 | J25: 233 | K25: 269 | L25: 270 | M25: 234 | N25: 178
A26: Nicoya | B26: 10945 | C26: 1197 | D26: 896 | E26: 981 | F26: 810 | G26: 949 | H26: 853 | I26: 922 | J26: 820 | K26: 1036 | L26: 1003 | M26: 823 | N26: 655
A27: Orotina | B27: 7822 | C27: 847 | D27: 598 | E27: 650 | F27: 596 | G27: 680 | H27: 594 | I27: 707 | J27: 657 | K27: 882 | L27: 654 | M27: 569 | N27: 388
A28: Osa | B28: 4661 | C28: 502 | D28: 399 | E28: 400 | F28: 317 | G28: 344 | H28: 376 | I28: 454 | J28: 383 | K28: 420 | L28: 423 | M28: 353 | N28: 290
A29: Pérez Zeledón | B29: 25624 | C29: 2953 | D29: 2147 | E29: 2617 | F29: 1829 | G29: 2043 | H29: 1895 | I29: 2252 | J29: 2022 | K29: 2327 | L29: 2089 | M29: 1922 | N29: 1528
A30: Pococí | B30: 28059 | C30: 3379 | D30: 2273 | E30: 2365 | F30: 1932 | G30: 2501 | H30: 2089 | I30: 2510 | J30: 2165 | K30: 2428 | L30: 2583 | M30: 2055 | N30: 1779
A31: Puntarenas | B31: 24987 | C31: 2911 | D31: 2182 | E31: 2045 | F31: 1749 | G31: 2055 | H31: 1961 | I31: 2180 | J31: 2033 | K31: 2297 | L31: 2264 | M31: 1862 | N31: 1448
A32: Puriscal | B32: 8259 | C32: 872 | D32: 674 | E32: 743 | F32: 512 | G32: 682 | H32: 647 | I32: 815 | J32: 650 | K32: 852 | L32: 778 | M32: 574 | N32: 460
A33: Quepos | B33: =SUM(C33:N33) -> 8117 | C33: 906 | D33: 674 | E33: 663 | F33: 578 | G33: 700 | H33: 668 | I33: 745 | J33: 623 | K33: 834 | L33: 633 | M33: 628 | N33: 465
A34: San Carlos | B34: 26272 | C34: 2899 | D34: 2062 | E34: 2386 | F34: 1817 | G34: 2276 | H34: 1958 | I34: 2383 | J34: 2025 | K34: 2533 | L34: 2361 | M34: 2062 | N34: 1510
A35: San Ramón | B35: 22692 | C35: 2534 | D35: 2015 | E35: 1980 | F35: 1498 | G35: 1816 | H35: 1793 | I35: 2058 | J35: 1797 | K35: 2182 | L35: 2011 | M35: 1716 | N35: 1292
A36: Santa Cruz | B36: 12273 | C36: 1208 | D36: 1034 | E36: 978 | F36: 830 | G36: 983 | H36: 925 | I36: 1094 | J36: 963 | K36: 1232 | L36: 1192 | M36: 997 | N36: 837
A37: Sarapiquí | B37: 8278 | C37: 903 | D37: 773 | E37: 640 | F37: 558 | G37: 744 | H37: 629 | I37: 713 | J37: 629 | K37: 818 | L37: 745 | M37: 632 | N37: 494
A38: Siquirres | B38: 12901 | C38: 1526 | D38: 1123 | E38: 1161 | F38: 874 | G38: 1073 | H38: 897 | I38: 1158 | J38: 967 | K38: 1075 | L38: 1224 | M38: 984 | N38: 839
A39: Talamanca | B39: 5434 | C39: 684 | D39: 568 | E39: 456 | F39: 339 | G39: 372 | H39: 364 | I39: 453 | J39: 470 | K39: 511 | L39: 514 | M39: 397 | N39: 306
A40: Tarrazú | B40: 5208 | C40: 515 | D40: 422 | E40: 448 | F40: 387 | G40: 467 | H40: 442 | I40: 517 | J40: 425 | K40: 466 | L40: 449 | M40: 377 | N40: 293
A41: Turrialba | B41: 13544 | C41: 1574 | D41: 1169 | E41: 1132 | F41: 891 | G41: 1143 | H41: 1032 | I41: 1281 | J41: 994 | K41: 1260 | L41: 1236 | M41: 1039 | N41: 793
A42: Upala | B42: 6131 | C42: 692 | D42: 506 | E42: 501 | F42: 420 | G42: 577 | H42: 427 | I42: 528 | J42: 453 | K42: 616 | L42: 553 | M42: 495 | N42: 363
A45: FUENTE: Coordinación de Servicios Regionales del Tribunal Supremo de Elecciones.

Sheet 11
A1: CUADRO 11
A2: COSTA RICA: PRODUCTOS Y SERVICIOS BRINDADOS, POR TIPO DE SERVICIO
A3: SEGÚN MES, AL 31 DE DICIEMBRE 2019
A5: Mes | B5: Productos y Sevicios
B6: Cédulas de identidad impresas | C6: Tarjetas identidad de menores impresas | D6: Certificaciones y constancias expedidas | E6: Asambleas de partidos políticos fiscalizadas | F6: Atención de consultas en materia electoral 1/ | G6: Movimientos y actualizaciones al Padrón Electoral 2/
A8: Total | B8: =SUM(B10:B21) -> 786539 | C8: 142726 | D8: 1854391 | E8: 2169 | F8: 20322 | G8: 727536
A10: Enero | B10: 84268 | C10: 16822 | D10: 185132 | E10: 145 | F10: 1161 | G10: 95791
A11: Febrero | B11: 67521 | C11: 13392 | D11: 221288 | E11: 93 | F11: 1039 | G11: 68669
A12: Marzo | B12: 67447 | C12: 9087 | D12: 175242 | E12: 157 | F12: 1335 | G12: 71800
A13: Abril | B13: 53291 | C13: 7603 | D13: 130447 | E13: 83 | F13: 1206 | G13: 55087
A14: Mayo | B14: 66710 | C14: 9842 | D14: 174107 | E14: 94 | F14: 1197 | G14: 75618
A15: Junio | B15: 59998 | C15: 9194 | D15: 137857 | E15: 147 | F15: 1282 | G15: 63162
A16: Julio | B16: 72229 | C16: 15016 | D16: 136411 | E16: 259 | F16: 1748 | G16: 78237
A17: Agosto | B17: 64214 | C17: 9446 | D17: 140145 | E17: 561 | F17: 1584 | G17: 66952
A18: Setiembre | B18: 72970 | C18: 11212 | D18: 134727 | E18: 498 | F18: 1436 | G18: 79518
A19: Octubre | B19: 69056 | C19: 14706 | D19: 151657 | E19: 42 | F19: 2379 | G19: 72032
A20: Noviembre | B20: 60598 | C20: 13420 | D20: 156311 | E20: 40 | F20: 2226 | G20: 670
A21: Diciembre | B21: 48237 | C21: 12986 | D21: 111067 | E21: 50 | F21: 3729 | G21: 0
A24: 1/ De Partidos Políticos, Municipalidades, Asamblea Legislativa y otros.
A25: 2/ El Padrón Nacional Electoral se cerró en octubre 2014 debido a las elecciones municipales de febrero 2015.
A27: Fuente: Oficinas del Tribunal Supremo de Elecciones.

Sheet 12
A2: CUADRO 12
A3: COSTA RICA: CERTIFICACIONES, CONSTANCIAS Y TARJETAS DE IDENTIDAD DE MENORES EXPEDIDAS
A4: SEGÚN MES, AL 31 DE DICIEMBRE 2019
A6: Certificaciones, constancias y TIM | B6: Total | C6: Enero | D6: Febrero | E6: Marzo | F6: Abril | G6: Mayo | H6: Junio | I6: Julio | J6: Agosto | K6: Setiembre | L6: Octubre | M6: Noviembre | N6: Diciembre
A8: Certificaciones y constancias expedidas | B8: =SUM(C8:N8) -> 1854391 | C8: =C9+C11+C14 -> 185132 | D8: =D9+D11+D14 -> 221288 | E8: 175242 | F8: 130447 | G8: 174107 | H8: 137857 | I8: 136411 | J8: 140145 | K8: 134727 | L8: 151657 | M8: 156311 | N8: 111067
A9: Sede Central | B9: =SUM(B10:B10) -> 528344 | C9: =SUM(C10:C10) -> 57173 | D9: 59312 | E9: 47336 | F9: 34786 | G9: 39380 | H9: 41122 | I9: 42395 | J9: 43214 | K9: 40767 | L9: 42196 | M9: 47512 | N9: 33151
A10: Certificaciones | B10: =SUM(C10:N10) -> 528344 | C10: 57173 | D10: 59312 | E10: 47336 | F10: 34786 | G10: 39380 | H10: 41122 | I10: 42395 | J10: 43214 | K10: 40767 | L10: 42196 | M10: 47512 | N10: 33151
A11: Oficinas regionales | B11: =SUM(B12:B13) -> 1256466 | C11: =SUM(C12:C13) -> 121637 | D11: =SUM(D12:D13) -> 156327 | E11: 122609 | F11: 90803 | G11: 129482 | H11: 91966 | I11: 88321 | J11: 90819 | K11: 88299 | L11: 102680 | M11: =SUM(M12:M13) -> 102313 | N11: 71210
A12: Certificaciones | B12: =SUM(C12:N12) -> 1175817 | C12: 114334 | D12: 142732 | E12: 113235 | F12: 86566 | G12: 124496 | H12: 87270 | I12: 84113 | J12: 85576 | K12: 83179 | L12: 93904 | M12: 92296 | N12: 68116
A13: Constancias | B13: =SUM(C13:N13) -> 80649 | C13: 7303 | D13: 13595 | E13: 9374 | F13: 4237 | G13: 4986 | H13: 4696 | I13: 4208 | J13: 5243 | K13: 5120 | L13: 8776 | M13: 10017 | N13: 3094
A14: Certificaciones Digitales | B14: =SUM(C14:N14) -> 69581 | C14: 6322 | D14: 5649 | E14: 5297 | F14: 4858 | G14: 5245 | H14: 4769 | I14: 5695 | J14: 6112 | K14: 5661 | L14: 6781 | M14: 6486 | N14: 6706
A16: TIM expedidas | B16: =SUM(C16:N16) -> 142726 | C16: =C17+C20+C23 -> 16822 | D16: =D17+D20+D23 -> 13392 | E16: 9087 | F16: 7603 | G16: 9842 | H16: 9194 | I16: 15016 | J16: 9446 | K16: 11212 | L16: 14706 | M16: 13420 | N16: 12986
A17: Departamento Electoral | B17: =SUM(C17:N17) -> 37317 | C17: =SUM(C18:C19) -> 4754 | D17: =SUM(D18:D19) -> 2991 | E17: 2326 | F17: 2096 | G17: 2355 | H17: 2382 | I17: 4224 | J17: 2556 | K17: 3042 | L17: 3873 | M17: 3380 | N17: 3338
A18: Emitidas por primera vez | B18: =SUM(C18:N18) -> 18866 | C18: 2215 | D18: 1257 | E18: 1181 | F18: 1150 | G18: 1261 | H18: 1237 | I18: 2222 | J18: 1408 | K18: 1664 | L18: 2206 | M18: 1585 | N18: 1480
A19: Duplicadas | B19: =SUM(C19:N19) -> 18451 | C19: 2539 | D19: 1734 | E19: 1145 | F19: 946 | G19: 1094 | H19: 1145 | I19: 2002 | J19: 1148 | K19: 1378 | L19: 1667 | M19: 1795 | N19: 1858
A20: Oficinas regionales | B20: =SUM(B21:B22) -> 104862 | C20: =SUM(C21:C22) -> 12053 | D20: =SUM(D21:D22) -> 10385 | E20: =SUM(E21:E22) -> 6615 | F20: 5492 | G20: 7387 | H20: 6706 | I20: 10770 | J20: 6873 | K20: 8150 | L20: 10779 | M20: 10006 | N20: 9646
A21: Emitidas por primera vez | B21: =SUM(C21:N21) -> 54766 | C21: 5873 | D21: 4460 | E21: 3403 | F21: 2853 | G21: 4025 | H21: 3605 | I21: 5330 | J21: 3867 | K21: 4692 | L21: 6470 | M21: 5571 | N21: 4617
A22: Duplicadas | B22: =SUM(C22:N22) -> 50096 | C22: 6180 | D22: 5925 | E22: 3212 | F22: 2639 | G22: 3362 | H22: 3101 | I22: 5440 | J22: 3006 | K22: 3458 | L22: 4309 | M22: 4435 | N22: 5029
A23: Giras | B23: =SUM(B24:B25) -> 547 | C23: =SUM(C24:C25) -> 15 | D23: =SUM(D24:D25) -> 16 | E23: =SUM(E24:E25) -> 146 | F23: 15 | G23: 100 | H23: 106 | I23: 22 | J23: 17 | K23: 20 | L23: 54 | M23: 34 | N23: 2
A24: Emitidas por primera vez | B24: =SUM(C24:N24) -> 169 | C24: 8 | D24: 11 | E24: 14 | F24: 9 | G24: 55 | H24: 14 | I24: 6 | J24: 5 | K24: 11 | L24: 34 | M24: 0 | N24: 2
A25: Duplicadas | B25: =SUM(C25:N25) -> 378 | C25: 7 | D25: 5 | E25: 132 | F25: 6 | G25: 45 | H25: 92 | I25: 16 | J25: 12 | K25: 9 | L25: 20 | M25: 34 | N25: 0
A28: Fuente: Informe mensual de labores del Departamento Civil, Departamento Electoral y Coordinación de Servicios Regionales del Tribunal Supremo de Elecciones.

Sheet 13
A1: CUADRO 13
A2: COSTA RICA: INSCRIPCIONES CIVILES POR MES, SEGÚN CLASE DE INSCRIPCIÓN
A3: AL 31 DE DICIEMBRE 2019
A5: Clase de inscripción 1/ | B5: Total | C5: Mes
C6: Enero | D6: Febrero | E6: Marzo | F6: Abril | G6: Mayo | H6: Junio | I6: Julio | J6: Agosto | K6: Setiembre | L6: Octubre | M6: Noviembre | N6: Diciembre
A8: Nacimientos | B8: =SUM(C8:N8) -> 65279 | C8: =SUM(C9:C10) -> 7135 | D8: =SUM(D9:D10) -> 5733 | E8: 5376 | F8: 5207 | G8: 5867 | H8: 5027 | I8: 5384 | J8: 5500 | K8: 5441 | L8: 5606 | M8: 5521 | N8: 3482
A9: Sección de Inscripciones | B9: =SUM(C9:N9) -> 40859 | C9: 4946 | D9: 3790 | E9: 3187 | F9: 3634 | G9: 3557 | H9: 2835 | I9: 3146 | J9: 3414 | K9: 3111 | L9: 3402 | M9: 3710 | N9: 2127
A10: Digitales | B10: =SUM(C10:N10) -> 24420 | C10: 2189 | D10: 1943 | E10: 2189 | F10: 1573 | G10: 2310 | H10: 2192 | I10: 2238 | J10: 2086 | K10: 2330 | L10: 2204 | M10: 1811 | N10: 1355
A12: Matrimonios | B12: =SUM(B13:B15) -> 22312 | C12: =SUM(C13:C15) -> 2171 | D12: 3449 | E12: 2320 | F12: 1549 | G12: 1943 | H12: 1572 | I12: 1805 | J12: 1809 | K12: 1652 | L12: 1090 | M12: 2003 | N12: 949
A13: Civiles | B13: =SUM(C13:N13) -> 14319 | C13: 1013 | D13: 2342 | E13: 1341 | F13: 1170 | G13: 1368 | H13: 1312 | I13: 1069 | J13: 1200 | K13: 1095 | L13: 589 | M13: 1323 | N13: 497
A14: Católicos | B14: =SUM(C14:N14) -> 6677 | C14: 993 | D14: 1058 | E14: 939 | F14: 299 | G14: 510 | H14: 198 | I14: 534 | J14: 447 | K14: 501 | L14: 318 | M14: 467 | N14: 413
A15: Extranjeros2/ | B15: =SUM(C15:N15) -> 1316 | C15: 165 | D15: 49 | E15: 40 | F15: 80 | G15: 65 | H15: 62 | I15: 202 | J15: 162 | K15: 56 | L15: 183 | M15: 213 | N15: 39
A17: Defunciones | B17: =SUM(C17:N17) -> 23023 | C17: =SUM(C18:C19) -> 2374 | D17: 2226 | E17: 1697 | F17: 1695 | G17: 2205 | H17: 1850 | I17: 2242 | J17: 1629 | K17: 2203 | L17: 1884 | M17: 1763 | N17: 1255
A18: Sección de Inscripciones | B18: =SUM(C18:N18) -> 21468 | C18: 2264 | D18: 2145 | E18: 1587 | F18: 1550 | G18: 2047 | H18: 1713 | I18: 2102 | J18: 1500 | K18: 2070 | L18: 1754 | M18: 1610 | N18: 1126
A19: Digitales | B19: =SUM(C19:N19) -> 1555 | C19: 110 | D19: 81 | E19: 110 | F19: 145 | G19: 158 | H19: 137 | I19: 140 | J19: 129 | K19: 133 | L19: 130 | M19: 153 | N19: 129
A22: 1/ Todos los datos se refieren a hechos inscritos en el mes respectivo, no así a los ocurridos.
A24: 2/ Matrimonios inscritos, pero realizados en el extranjero.
A26: Fuente: Sección de Inscripciones del Tribunal Supremo de Elecciones.

Sheet G6
A2: GRÁFICO 6
A3: COSTA RICA: MATRIMONIOS INSCRITOS, SEGÚN CLASE DE INSCRIPCIÓN | K3: MATRIMONIOS INSCRITOS
A4: AL 31 DE DICIEMBRE 2019 | K4: Civiles | L4: 14319 | M4: 64.17622804
K5: Católicos | L5: 6677 | M5: 29.92560057
K6: Extranjeros | L6: 1316 | M6: 5.898171388
E7: Sin lugar | K7: Total | L7: 22312
A29: Fuente: Cuadro 13.

Sheet 14
A1: CUADRO 14
A2: COSTA RICA: NACIMIENTOS INSCRITOS, POR PROVINCIA Y PARTIDO ESPECIAL
A3: SEGÚN MES, AL 31 DE DICIEMBRE 2019
A5: Mes | B5: Total | C5: San José | D5: Alajuela | E5: Cartago | F5: Heredia | G5: Guanacaste | H5: Puntarenas | I5: Limón | J5: Partido especial 1/ | K5: Inscripción Digital
A7: Costa Rica | B7: =SUM(B9:B20) -> 65279 | C7: =SUM(C9:C20) -> 15476 | D7: =SUM(D9:D20) -> 7775 | E7: 3587 | F7: 1934 | G7: 2669 | H7: 3798 | I7: 3492 | J7: 2128 | K7: 24420
A9: Enero | B9: =SUM(C9:K9) -> 7135 | C9: 1484 | D9: 1232 | E9: 607 | F9: 260 | G9: 393 | H9: 339 | I9: 456 | J9: 175 | K9: 2189
A10: Febrero | B10: =SUM(C10:K10) -> 5733 | C10: 1708 | D10: 547 | E10: 265 | F10: 129 | G10: 245 | H10: 324 | I10: 381 | J10: 191 | K10: 1943
A11: Marzo | B11: 5376 | C11: 1623 | D11: 402 | E11: 235 | F11: 93 | G11: 186 | H11: 268 | I11: 230 | J11: 150 | K11: 2189
A12: Abril | B12: 5207 | C12: 1341 | D12: 599 | E12: 352 | F12: 248 | G12: 234 | H12: 364 | I12: 328 | J12: 168 | K12: 1573
A13: Mayo | B13: 5867 | C13: 749 | D13: 988 | E13: 424 | F13: 219 | G13: 279 | H13: 351 | I13: 268 | J13: 279 | K13: 2310
A14: Junio | B14: 5027 | C14: 1267 | D14: 502 | E14: 121 | F14: 143 | G14: 145 | H14: 277 | I14: 206 | J14: 174 | K14: 2192
A15: Julio | B15: 5384 | C15: 1165 | D15: 541 | E15: 236 | F15: 108 | G15: 195 | H15: 543 | I15: 177 | J15: 181 | K15: 2238
A16: Agosto | B16: 5500 | C16: 1220 | D16: 706 | E16: 297 | F16: 163 | G16: 271 | H16: 222 | I16: 367 | J16: 168 | K16: 2086
A17: Setiembre | B17: 5441 | C17: 1323 | D17: 389 | E17: 273 | F17: 177 | G17: 176 | H17: 277 | I17: 292 | J17: 204 | K17: 2330
A18: Octubre | B18: 5606 | C18: 1476 | D18: 785 | E18: 134 | F18: 121 | G18: 182 | H18: 282 | I18: 273 | J18: 149 | K18: 2204
A19: Noviembre | B19: 5521 | C19: 1200 | D19: 706 | E19: 347 | F19: 216 | G19: 267 | H19: 371 | I19: 372 | J19: 231 | K19: 1811
A20: Diciembre | B20: 3482 | C20: 920 | D20: 378 | E20: 296 | F20: 57 | G20: 96 | H20: 180 | I20: 142 | J20: 58 | K20: 1355
A23: 1/ Inscripción de nacimientos de costarricenses nacidos en el extranjero.
A25: Fuente: Sección de Inscripciones del Tribunal Supremo de Elecciones.

Sheet 15
A1: CUADRO 15
A2: COSTA RICA: DEFUNCIONES INSCRITAS, POR PROVINCIA, SEGÚN MES
A3: AL 31 DE DICIEMBRE 2019
A5: Mes | B5: Total | C5: San José | D5: Alajuela | E5: Cartago | F5: Heredia | G5: Guanacaste | H5: Puntarenas | I5: Limón | J5: Inscripción Digital
A7: Costa Rica | B7: =SUM(B9:B20) -> 23023 | C7: =SUM(C9:C20) -> 8634 | D7: 3449 | E7: 2134 | F7: 1300 | G7: 1763 | H7: 2103 | I7: 2085 | J7: 1555
A9: Enero | B9: =SUM(C9:J9) -> 2374 | C9: 738 | D9: 292 | E9: 127 | F9: 185 | G9: 177 | H9: 127 | I9: 618 | J9: 110
A10: Febrero | B10: =SUM(C10:J10) -> 2226 | C10: 824 | D10: 369 | E10: 255 | F10: 155 | G10: 190 | H10: 198 | I10: 154 | J10: 81
A11: Marzo | B11: 1697 | C11: 898 | D11: 201 | E11: 125 | F11: 61 | G11: 95 | H11: 106 | I11: 101 | J11: 110
A12: Abril | B12: 1695 | C12: 538 | D12: 247 | E12: 105 | F12: 157 | G12: 46 | H12: 322 | I12: 135 | J12: 145
A13: Mayo | B13: 2205 | C13: 730 | D13: 344 | E13: 272 | F13: 68 | G13: 258 | H13: 182 | I13: 193 | J13: 158
A14: Junio | B14: 1850 | C14: 833 | D14: 254 | E14: 143 | F14: 42 | G14: 145 | H14: 168 | I14: 128 | J14: 137
A15: Julio | B15: 2242 | C15: 890 | D15: 317 | E15: 265 | F15: 95 | G15: 207 | H15: 161 | I15: 167 | J15: 140
A16: Agosto | B16: 1629 | C16: 502 | D16: 277 | E16: 191 | F16: 70 | G16: 148 | H16: 184 | I16: 128 | J16: 129
A17: Setiembre | B17: 2203 | C17: 897 | D17: 300 | E17: 180 | F17: 156 | G17: 157 | H17: 251 | I17: 129 | J17: 133
A18: Octubre | B18: 1884 | C18: 687 | D18: 304 | E18: 188 | F18: 84 | G18: 169 | H18: 164 | I18: 158 | J18: 130
A19: Noviembre | B19: 1763 | C19: 552 | D19: 357 | E19: 181 | F19: 168 | G19: 105 | H19: 139 | I19: 108 | J19: 153
A20: Diciembre | B20: 1255 | C20: 545 | D20: 187 | E20: 102 | F20: 59 | G20: 66 | H20: 101 | I20: 66 | J20: 129
A23: Fuente: Sección de Inscripciones del Tribunal Supremo de Elecciones.

Sheet G8
A2: GRÁFICO 8 | K2: Nacimientos | L2: Defunciones
A3: COSTA RICA: NACIMIENTOS Y DEFUNCIONES INSCRITAS | K3: 65279 | L3: 23023
A4: POR MES, AL 31 DE DICIEMBRE 2019 | J4: ENE | K4: 7135 | L4: 2374
J5: FEB | K5: 5733 | L5: 2226
J6: MAR | K6: 5376 | L6: 1697
E7: Sin lugar | J7: ABR | K7: 5207 | L7: 1695
J8: MAY | K8: 5867 | L8: 2205
J9: JUN | K9: 5027 | L9: 1850
J10: JUL | K10: 5384 | L10: 2242
J11: AGO | K11: 5500 | L11: 1629
J12: SET | K12: 5441 | L12: 2203
J13: OCT | K13: 5606 | L13: 1884
J14: NOV | K14: 5521 | L14: 1763
J15: DIC | K15: 3482 | L15: 1255
A26: Fuente: Cuadros 14 y 15.

Sheet 16
A1: CUADRO 16
A2: COSTA RICA: MODIFICACIÓN DE ASIENTOS CIVILES POR MES, SEGÚN CLASE DE INSCRIPCIÓN
A3: AL 31 DE DICIEMBRE 2019
A5: Clase de inscripción 1/ | B5: Total | C5: Mes
C6: Enero | D6: Febrero | E6: Marzo | F6: Abril | G6: Mayo | H6: Junio | I6: Julio | J6: Agosto | K6: Setiembre | L6: Octubre | M6: Noviembre | N6: Diciembre
A8: Total | B8: =SUM(C8:N8) -> 56758 | C8: =SUM(C10:C32) -> 5200 | D8: =SUM(D10:D32) -> 5837 | E8: 5062 | F8: 3852 | G8: 5393 | H8: 3627 | I8: 5697 | J8: 5109 | K8: 4027 | L8: 5564 | M8: 4332 | N8: 3058
A10: Adopciones | B10: =SUM(C10:N10) -> 254 | C10: 27 | D10: 2 | E10: 34 | F10: 9 | G10: 27 | H10: 26 | I10: 23 | J10: 26 | K10: 16 | L10: 20 | M10: 28 | N10: 16
A11: Cambio de nombre | B11: =SUM(C11:N11) -> 91 | C11: 8 | D11: 8 | E11: 4 | F11: 5 | G11: 4 | H11: 10 | I11: 9 | J11: 14 | K11: 7 | L11: 6 | M11: 11 | N11: 5
A12: Curatela 2/ | B12: 61 | C12: 2 | D12: 11 | E12: 0 | F12: 4 | G12: 7 | H12: 6 | I12: 16 | J12: 3 | K12: 3 | L12: 5 | M12: 1 | N12: 3
A13: Declaración de parentalidad | B13: 78 | C13: 4 | D13: 1 | E13: 4 | F13: 7 | G13: 17 | H13: 6 | I13: 6 | J13: 9 | K13: 4 | L13: 6 | M13: 11 | N13: 3
A14: Dejar sin efecto la sentencia | B14: 3 | C14: 0 | D14: 0 | E14: 0 | F14: 0 | G14: 0 | H14: 0 | I14: 0 | J14: 1 | K14: 1 | L14: 1 | M14: 0 | N14: 0
A15: Depósito judicial | B15: 76 | C15: 2 | D15: 15 | E15: 3 | F15: 6 | G15: 9 | H15: 2 | I15: 9 | J15: 7 | K15: 0 | L15: 14 | M15: 9 | N15: 0
A16: Divorcio | B16: 14009 | C16: 1234 | D16: 1199 | E16: 1410 | F16: 772 | G16: 1431 | H16: 881 | I16: 1619 | J16: 1214 | K16: 1076 | L16: 1380 | M16: 802 | N16: 991
A17: Exequátur de divorcio 3/ | B17: 70 | C17: 9 | D17: 5 | E17: 4 | F17: 2 | G17: 10 | H17: 5 | I17: 12 | J17: 9 | K17: 1 | L17: 8 | M17: 2 | N17: 3
A18: Guarda crianza y educación | B18: 5 | C18: 0 | D18: 0 | E18: 0 | F18: 1 | G18: 0 | H18: 1 | I18: 0 | J18: 2 | K18: 0 | L18: 1 | M18: 0 | N18: 0
A19: Impugnación de paternidad | B19: 270 | C19: 17 | D19: 25 | E19: 23 | F19: 6 | G19: 32 | H19: 8 | I19: 31 | J19: 30 | K19: 23 | L19: 40 | M19: 24 | N19: 11
A20: Impugnación de reconocimiento | B20: 175 | C20: 13 | D20: 12 | E20: 4 | F20: 6 | G20: 27 | H20: 11 | I20: 24 | J20: 25 | K20: 10 | L20: 21 | M20: 6 | N20: 16
A21: Insania 4/ | B21: 30 | C21: 3 | D21: 5 | E21: 5 | F21: 0 | G21: 0 | H21: 0 | I21: 6 | J21: 4 | K21: 0 | L21: 7 | M21: 0 | N21: 0
A22: Investigación de parentalidad | B22: 325 | C22: 30 | D22: 36 | E22: 25 | F22: 21 | G22: 45 | H22: 20 | I22: 40 | J22: 24 | K22: 20 | L22: 29 | M22: 14 | N22: 21
A23: Nombramiento de tutor | B23: 16 | C23: 2 | D23: 0 | E23: 2 | F23: 1 | G23: 1 | H23: 2 | I23: 3 | J23: 0 | K23: 0 | L23: 3 | M23: 2 | N23: 0
A24: Nulidad de matrinomio | B24: 173 | C24: 2 | D24: 6 | E24: 0 | F24: 9 | G24: 8 | H24: 2 | I24: 2 | J24: 17 | K24: 4 | L24: 13 | M24: 46 | N24: 64
A25: Ocurso | B25: 10323 | C25: 1243 | D25: 856 | E25: 1120 | F25: 1045 | G25: 730 | H25: 834 | I25: 723 | J25: 952 | K25: 363 | L25: 975 | M25: 1019 | N25: 463
A26: Pérdida de patria potestad | B26: 214 | C26: 17 | D26: 14 | E26: 27 | F26: 7 | G26: 29 | H26: 16 | I26: 22 | J26: 24 | K26: 9 | L26: 17 | M26: 15 | N26: 17
A27: Presunción de muerte | B27: 9 | C27: 1 | D27: 3 | E27: 0 | F27: 0 | G27: 1 | H27: 0 | I27: 1 | J27: 0 | K27: 0 | L27: 0 | M27: 3 | N27: 0
A28: Reconocimientos | B28: 24729 | C28: 2188 | D28: 3179 | E28: 2005 | F28: 1350 | G28: 2718 | H28: 1335 | I28: 2457 | J28: 2328 | K28: 1904 | L28: 2383 | M28: 1804 | N28: 1078
A29: Recuperación de nacionalidad | B29: 2 | C29: 0 | D29: 0 | E29: 0 | F29: 2 | G29: 0 | H29: 0 | I29: 0 | J29: 0 | K29: 0 | L29: 0 | M29: 0 | N29: 0
A30: Separación judicial | B30: 23 | C30: 3 | D30: 0 | E30: 0 | F30: 4 | G30: 5 | H30: 1 | I30: 0 | J30: 0 | K30: 0 | L30: 4 | M30: 2 | N30: 4
A31: Suspensión de patria potestad | B31: 78 | C31: 2 | D31: 5 | E31: 3 | F31: 4 | G31: 5 | H31: 0 | I31: 7 | J31: 11 | K31: 5 | L31: 15 | M31: 15 | N31: 6
A32: Otra | B32: 5744 | C32: 393 | D32: 455 | E32: 389 | F32: 591 | G32: 287 | H32: 461 | I32: 687 | J32: 409 | K32: 581 | L32: 616 | M32: 518 | N32: 357
A35: 1/ Todos los datos se refieren a hechos inscritos en el mes respectivo, no así a los ocurridos.
A37: 2/ Sistema de protección y guard. Institución jurídica creada por el amparo de la persona y los bienes del mayor de edad incapacitado.
A39: 3/ Reconocimiento de divorcio extranjero.
A41: 4/ Personas con demencia.
A43: Fuente: Sección de Actos Jurídicos del Tribunal Supremo de Elecciones.

Sheet G7
A2: GRÁFICO 7 | K2: MATRIMONIOS vs DIVORCIOS
A3: COSTA RICA: MATRIMONIOS Y DIVORCIOS INSCRITOS | L3: Matrimonios | M3: Divorcios
A4: POR MES, AL 31 DE DICIEMBRE 2019 | K4: ENE | L4: 2171 | M4: 1234
K5: FEB | L5: 3449 | M5: 1199
K6: MAR | L6: 2320 | M6: 1410
K7: ABR | L7: 1549 | M7: 772
K8: MAY | L8: 1943 | M8: 1431
K9: JUN | L9: 1572 | M9: 881
K10: JUL | L10: 1805 | M10: 1619
K11: AGO | L11: 1809 | M11: 1214
K12: SET | L12: 1652 | M12: 1076
K13: OCT | L13: 1090 | M13: 1380
K14: NOV | L14: 2003 | M14: 802
K15: DIC | L15: 949 | M15: 991
L16: 22312 | M16: 14009
A30: Fuente: Cuadros 13 y 16.

Sheet 17
A1: CUADRO 17
A2: COSTA RICA: CARTAS DE NATURALIZACIÓN ENTREGADAS POR MES, SEGÚN SEXO Y TIPO DE LEY
A3: AL 31 DE DICIEMBRE 2019
A5: Cartas entregadas | B5: Total | C5: Mes
C6: Enero | D6: Febrero | E6: Marzo | F6: Abril | G6: Mayo | H6: Junio | I6: Julio | J6: Agosto | K6: Setiembre | L6: Octubre | M6: Noviembre | N6: Diciembre
A8: Sexo | B8: =SUM(C8:N8) -> 5808 | C8: =SUM(C9:C10) -> 491 | D8: =SUM(D9:D10) -> 487 | E8: 634 | F8: 389 | G8: 371 | H8: 481 | I8: 475 | J8: 423 | K8: 483 | L8: 541 | M8: 646 | N8: 387
A9: Hombres | B9: =SUM(C9:N9) -> 2415 | C9: 208 | D9: 192 | E9: 297 | F9: 147 | G9: 150 | H9: 206 | I9: 204 | J9: 173 | K9: 197 | L9: 229 | M9: 260 | N9: 152
A10: Mujeres | B10: =SUM(C10:N10) -> 3393 | C10: 283 | D10: 295 | E10: 337 | F10: 242 | G10: 221 | H10: 275 | I10: 271 | J10: 250 | K10: 286 | L10: 312 | M10: 386 | N10: 235
A12: Tipo de ley | B12: =SUM(C12:N12) -> 5808 | C12: =SUM(C13:C16) -> 491 | D12: =SUM(D13:D16) -> 487 | E12: 634 | F12: 389 | G12: 371 | H12: 481 | I12: 475 | J12: 423 | K12: 483 | L12: 541 | M12: 646 | N12: 387
A13: Matrimonio | B13: =SUM(C13:N13) -> 3279 | C13: 187 | D13: 250 | E13: 339 | F13: 211 | G13: 217 | H13: 277 | I13: 236 | J13: 289 | K13: 318 | L13: 381 | M13: 330 | N13: 244
A14: 1155 | B14: =SUM(C14:N14) -> 1940 | C14: 245 | D14: 193 | E14: 235 | F14: 140 | G14: 113 | H14: 133 | I14: 179 | J14: 93 | K14: 122 | L14: 110 | M14: 257 | N14: 120
A15: Trascendencia | B15: =SUM(C15:N15) -> 313 | C15: 31 | D15: 27 | E15: 37 | F15: 20 | G15: 16 | H15: 43 | I15: 39 | J15: 20 | K15: 26 | L15: 28 | M15: 17 | N15: 9
A16: Otras | B16: =SUM(C16:N16) -> 276 | C16: 28 | D16: 17 | E16: 23 | F16: 18 | G16: 25 | H16: 28 | I16: 21 | J16: 21 | K16: 17 | L16: 22 | M16: 42 | N16: 14
A19: Fuente: Sección de Opciones y Naturalizaciones del Tribunal Supremo de Elecciones.

Sheet 18
A2: CUADRO 18
A3: COSTA RICA: CARTAS DE NATURALIZACIÓN ENTREGADAS, POR MES
A4: SEGÚN PAÍS DE ORIGEN, AL 31 DE DICIEMBRE 2019
A6: País de origen | B6: Total | C6: Enero | D6: Febrero | E6: Marzo | F6: Abril | G6: Mayo | H6: Junio | I6: Julio | J6: Agosto | K6: Setiembre | L6: Octubre | M6: Noviembre | N6: Diciembre
A8: Total | B8: =SUM(B10:B72) -> 5808 | C8: 491 | D8: 487 | E8: 634 | F8: 389 | G8: 371 | H8: 481 | I8: 475 | J8: 423 | K8: 483 | L8: 541 | M8: 646 | N8: 387
A10: Alemania | B10: =SUM(C10:N10) -> 4 | C10: 0 | D10: 0 | E10: 0 | F10: 1 | G10: 0 | H10: 1 | I10: 0 | J10: 0 | K10: 0 | L10: 0 | M10: 1 | N10: 1
A11: Apátrida | B11: 9 | C11: 0 | D11: 1 | E11: 1 | F11: 0 | G11: 0 | H11: 0 | I11: 1 | J11: 1 | K11: 1 | L11: 0 | M11: 2 | N11: 2
A12: Argelia | B12: 2 | C12: 0 | D12: 0 | E12: 0 | F12: 0 | G12: 0 | H12: 1 | I12: 0 | J12: 0 | K12: 0 | L12: 0 | M12: 0 | N12: 1
A13: Argentina | B13: 21 | C13: 2 | D13: 1 | E13: 3 | F13: 1 | G13: 1 | H13: 4 | I13: 2 | J13: 1 | K13: 0 | L13: 4 | M13: 2 | N13: 0
A14: Bélgica | B14: 3 | C14: 0 | D14: 1 | E14: 0 | F14: 1 | G14: 1 | H14: 0 | I14: 0 | J14: 0 | K14: 0 | L14: 0 | M14: 0 | N14: 0
A15: Belice | B15: 1 | C15: 0 | D15: 0 | E15: 0 | F15: 0 | G15: 0 | H15: 0 | I15: 0 | J15: 0 | K15: 0 | L15: 1 | M15: 0 | N15: 0
A16: Bolivia | B16: 10 | C16: 0 | D16: 0 | E16: 1 | F16: 2 | G16: 0 | H16: 0 | I16: 0 | J16: 0 | K16: 0 | L16: 1 | M16: 6 | N16: 0
A17: Brasil | B17: 7 | C17: 1 | D17: 1 | E17: 1 | F17: 1 | G17: 0 | H17: 1 | I17: 0 | J17: 0 | K17: 0 | L17: 1 | M17: 0 | N17: 1
A18: Canadá | B18: 24 | C18: 1 | D18: 1 | E18: 7 | F18: 2 | G18: 2 | H18: 3 | I18: 2 | J18: 1 | K18: 0 | L18: 2 | M18: 2 | N18: 1
A19: Checoslovaquia | B19: 3 | C19: 0 | D19: 1 | E19: 0 | F19: 0 | G19: 0 | H19: 0 | I19: 0 | J19: 1 | K19: 0 | L19: 0 | M19: 1 | N19: 0
A20: Chile | B20: 32 | C20: 5 | D20: 8 | E20: 3 | F20: 2 | G20: 2 | H20: 4 | I20: 2 | J20: 0 | K20: 3 | L20: 1 | M20: 1 | N20: 1
A21: China | B21: 27 | C21: 4 | D21: 3 | E21: 6 | F21: 2 | G21: 3 | H21: 2 | I21: 4 | J21: 0 | K21: 1 | L21: 0 | M21: 2 | N21: 0
A22: Colombia | B22: 457 | C22: 71 | D22: 57 | E22: 54 | F22: 16 | G22: 20 | H22: 41 | I22: 42 | J22: 19 | K22: 39 | L22: 45 | M22: 34 | N22: 19
A23: Corea | B23: 1 | C23: 0 | D23: 0 | E23: 0 | F23: 0 | G23: 1 | H23: 0 | I23: 0 | J23: 0 | K23: 0 | L23: 0 | M23: 0 | N23: 0
A24: Cuba | B24: 78 | C24: 8 | D24: 4 | E24: 14 | F24: 7 | G24: 7 | H24: 2 | I24: 6 | J24: 6 | K24: 5 | L24: 4 | M24: 9 | N24: 6
A25: Ecuador | B25: 31 | C25: 6 | D25: 3 | E25: 3 | F25: 1 | G25: 3 | H25: 1 | I25: 1 | J25: 2 | K25: 2 | L25: 4 | M25: 4 | N25: 1
A26: Egipto | B26: 2 | C26: 0 | D26: 0 | E26: 0 | F26: 0 | G26: 2 | H26: 0 | I26: 0 | J26: 0 | K26: 0 | L26: 0 | M26: 0 | N26: 0
A27: El Salvador | B27: 234 | C27: 27 | D27: 22 | E27: 31 | F27: 14 | G27: 10 | H27: 14 | I27: 22 | J27: 19 | K27: 24 | L27: 15 | M27: 24 | N27: 12
A28: Eslovenia | B28: 1 | C28: 0 | D28: 0 | E28: 0 | F28: 0 | G28: 0 | H28: 0 | I28: 0 | J28: 0 | K28: 0 | L28: 1 | M28: 0 | N28: 0
A29: España | B29: 39 | C29: 4 | D29: 5 | E29: 3 | F29: 6 | G29: 1 | H29: 4 | I29: 2 | J29: 7 | K29: 2 | L29: 0 | M29: 2 | N29: 3
A30: Estados Unidos | B30: 108 | C30: 8 | D30: 10 | E30: 18 | F30: 5 | G30: 8 | H30: 10 | I30: 6 | J30: 8 | K30: 13 | L30: 9 | M30: 7 | N30: 6
A31: Filipinas | B31: 5 | C31: 0 | D31: 1 | E31: 0 | F31: 0 | G31: 0 | H31: 1 | I31: 1 | J31: 0 | K31: 0 | L31: 0 | M31: 1 | N31: 1
A32: Francia | B32: 10 | C32: 0 | D32: 1 | E32: 2 | F32: 1 | G32: 0 | H32: 1 | I32: 0 | J32: 2 | K32: 1 | L32: 0 | M32: 0 | N32: 2
A33: Gran Bretaña | B33: 2 | C33: 0 | D33: 0 | E33: 1 | F33: 0 | G33: 0 | H33: 1 | I33: 0 | J33: 0 | K33: 0 | L33: 0 | M33: 0 | N33: 0
A34: Grecia | B34: 1 | C34: 1 | D34: 0 | E34: 0 | F34: 0 | G34: 0 | H34: 0 | I34: 0 | J34: 0 | K34: 0 | L34: 0 | M34: 0 | N34: 0
A35: Guatemala | B35: 57 | C35: 4 | D35: 3 | E35: 7 | F35: 2 | G35: 2 | H35: 8 | I35: 4 | J35: 8 | K35: 6 | L35: 4 | M35: 7 | N35: 2
A36: Guyana | B36: 1 | C36: 0 | D36: 0 | E36: 0 | F36: 0 | G36: 0 | H36: 0 | I36: 0 | J36: 0 | K36: 0 | L36: 0 | M36: 1 | N36: 0
A37: Haití | B37: 4 | C37: 1 | D37: 0 | E37: 0 | F37: 0 | G37: 0 | H37: 1 | I37: 0 | J37: 1 | K37: 0 | L37: 0 | M37: 0 | N37: 1
A38: Holanda | B38: 1 | C38: 0 | D38: 0 | E38: 0 | F38: 0 | G38: 0 | H38: 0 | I38: 0 | J38: 0 | K38: 0 | L38: 1 | M38: 0 | N38: 0
A39: Honduras | B39: 101 | C39: 4 | D39: 13 | E39: 14 | F39: 6 | G39: 6 | H39: 9 | I39: 8 | J39: 6 | K39: 5 | L39: 14 | M39: 9 | N39: 7
A40: India | B40: 4 | C40: 0 | D40: 0 | E40: 0 | F40: 0 | G40: 0 | H40: 1 | I40: 1 | J40: 0 | K40: 0 | L40: 2 | M40: 0 | N40: 0
A41: Inglaterra | B41: 3 | C41: 0 | D41: 3 | E41: 0 | F41: 0 | G41: 0 | H41: 0 | I41: 0 | J41: 0 | K41: 0 | L41: 0 | M41: 0 | N41: 0
A42: Irán | B42: 1 | C42: 0 | D42: 1 | E42: 0 | F42: 0 | G42: 0 | H42: 0 | I42: 0 | J42: 0 | K42: 0 | L42: 0 | M42: 0 | N42: 0
A43: Iraq | B43: 1 | C43: 0 | D43: 0 | E43: 0 | F43: 0 | G43: 0 | H43: 0 | I43: 0 | J43: 0 | K43: 0 | L43: 0 | M43: 1 | N43: 0
A44: Israel | B44: 2 | C44: 1 | D44: 0 | E44: 0 | F44: 0 | G44: 0 | H44: 0 | I44: 0 | J44: 0 | K44: 1 | L44: 0 | M44: 0 | N44: 0
A45: Italia | B45: 19 | C45: 5 | D45: 1 | E45: 3 | F45: 0 | G45: 0 | H45: 0 | I45: 3 | J45: 0 | K45: 1 | L45: 3 | M45: 1 | N45: 2
A46: Jamaica | B46: 5 | C46: 0 | D46: 0 | E46: 0 | F46: 2 | G46: 0 | H46: 0 | I46: 1 | J46: 0 | K46: 1 | L46: 0 | M46: 0 | N46: 1
A47: Jordania | B47: 8 | C47: 1 | D47: 0 | E47: 0 | F47: 0 | G47: 0 | H47: 0 | I47: 3 | J47: 0 | K47: 1 | L47: 3 | M47: 0 | N47: 0
A48: Líbano | B48: 2 | C48: 0 | D48: 0 | E48: 0 | F48: 1 | G48: 0 | H48: 0 | I48: 0 | J48: 0 | K48: 0 | L48: 0 | M48: 1 | N48: 0
A49: México | B49: 59 | C49: 7 | D49: 5 | E49: 2 | F49: 5 | G49: 1 | H49: 8 | I49: 8 | J49: 2 | K49: 5 | L49: 7 | M49: 5 | N49: 4
A50: Nicaragua | B50: 3690 | C50: 248 | D50: 252 | E50: 349 | F50: 266 | G50: 249 | H50: 304 | I50: 291 | J50: 294 | K50: 326 | L50: 353 | M50: 478 | N50: 280
A51: Nigeria | B51: 1 | C51: 0 | D51: 0 | E51: 0 | F51: 0 | G51: 0 | H51: 1 | I51: 0 | J51: 0 | K51: 0 | L51: 0 | M51: 0 | N51: 0
A52: Nueva Zelanda | B52: 1 | C52: 0 | D52: 0 | E52: 1 | F52: 0 | G52: 0 | H52: 0 | I52: 0 | J52: 0 | K52: 0 | L52: 0 | M52: 0 | N52: 0
A53: Pakistán | B53: 2 | C53: 0 | D53: 0 | E53: 1 | F53: 0 | G53: 0 | H53: 0 | I53: 0 | J53: 0 | K53: 0 | L53: 0 | M53: 1 | N53: 0
A54: Palestina | B54: 3 | C54: 1 | D54: 0 | E54: 2 | F54: 0 | G54: 0 | H54: 0 | I54: 0 | J54: 0 | K54: 0 | L54: 0 | M54: 0 | N54: 0
A55: Panamá | B55: 70 | C55: 6 | D55: 9 | E55: 7 | F55: 4 | G55: 5 | H55: 5 | I55: 2 | J55: 6 | K55: 8 | L55: 9 | M55: 4 | N55: 5
A56: Paraguay | B56: 2 | C56: 0 | D56: 0 | E56: 0 | F56: 0 | G56: 0 | H56: 0 | I56: 1 | J56: 0 | K56: 0 | L56: 1 | M56: 0 | N56: 0
A57: Perú | B57: 64 | C57: 8 | D57: 7 | E57: 7 | F57: 2 | G57: 4 | H57: 9 | I57: 6 | J57: 4 | K57: 5 | L57: 3 | M57: 8 | N57: 1
A58: Polonia | B58: 2 | C58: 0 | D58: 0 | E58: 0 | F58: 0 | G58: 1 | H58: 0 | I58: 0 | J58: 0 | K58: 0 | L58: 1 | M58: 0 | N58: 0
A59: Portugal | B59: 1 | C59: 0 | D59: 0 | E59: 0 | F59: 0 | G59: 0 | H59: 0 | I59: 0 | J59: 0 | K59: 0 | L59: 1 | M59: 0 | N59: 0
A60: Puerto Rico | B60: 1 | C60: 0 | D60: 1 | E60: 0 | F60: 0 | G60: 0 | H60: 0 | I60: 0 | J60: 0 | K60: 0 | L60: 0 | M60: 0 | N60: 0
A61: República Dominicana | B61: 94 | C61: 8 | D61: 12 | E61: 10 | F61: 5 | G61: 8 | H61: 9 | I61: 9 | J61: 5 | K61: 10 | L61: 7 | M61: 7 | N61: 4
A62: Rumanía | B62: 2 | C62: 0 | D62: 0 | E62: 1 | F62: 0 | G62: 0 | H62: 0 | I62: 0 | J62: 1 | K62: 0 | L62: 0 | M62: 0 | N62: 0
A63: Rusia | B63: 7 | C63: 0 | D63: 0 | E63: 0 | F63: 0 | G63: 2 | H63: 1 | I63: 1 | J63: 0 | K63: 0 | L63: 2 | M63: 1 | N63: 0
A64: Siria | B64: 5 | C64: 1 | D64: 1 | E64: 1 | F64: 0 | G64: 0 | H64: 0 | I64: 0 | J64: 1 | K64: 0 | L64: 0 | M64: 1 | N64: 0
A65: Suecia | B65: 1 | C65: 0 | D65: 1 | E65: 0 | F65: 0 | G65: 0 | H65: 0 | I65: 0 | J65: 0 | K65: 0 | L65: 0 | M65: 0 | N65: 0
A66: Somalia | B66: 1 | C66: 0 | D66: 0 | E66: 0 | F66: 0 | G66: 0 | H66: 0 | I66: 1 | J66: 0 | K66: 0 | L66: 0 | M66: 0 | N66: 0
A67: Suiza | B67: 15 | C67: 2 | D67: 1 | E67: 0 | F67: 0 | G67: 0 | H67: 2 | I67: 1 | J67: 0 | K67: 1 | L67: 5 | M67: 0 | N67: 3
A68: Taiwán | B68: 8 | C68: 2 | D68: 1 | E68: 0 | F68: 0 | G68: 0 | H68: 0 | I68: 1 | J68: 0 | K68: 0 | L68: 1 | M68: 2 | N68: 1
A69: Ucrania | B69: 1 | C69: 0 | D69: 0 | E69: 0 | F69: 0 | G69: 0 | H69: 0 | I69: 1 | J69: 0 | K69: 0 | L69: 0 | M69: 0 | N69: 0
A70: Uganda | B70: 1 | C70: 0 | D70: 0 | E70: 0 | F70: 0 | G70: 0 | H70: 0 | I70: 0 | J70: 0 | K70: 0 | L70: 0 | M70: 0 | N70: 1
A71: Uruguay | B71: 8 | C71: 2 | D71: 0 | E71: 5 | F71: 0 | G71: 0 | H71: 1 | I71: 0 | J71: 0 | K71: 0 | L71: 0 | M71: 0 | N71: 0
A72: Venezuela | B72: 448 | C72: 52 | D72: 56 | E72: 76 | F72: 34 | G72: 32 | H72: 31 | I72: 42 | J72: 28 | K72: 22 | L72: 36 | M72: 21 | N72: 18
A75: FUENTE: Sección de Opciones y Naturalizaciones del Tribunal Supremo de Elecciones.

Sheet 19
A1: CUADRO 19
A2: COSTA RICA: TARJETAS DE IDENTIDAD DE MENORES IMPRESAS
A3: POR PROVINCIA, SEGÚN MES, AL 31 DE DICIEMBRE 2019
A5: Mes | B5: Total | C5: Provincia
C6: San José | D6: Alajuela | E6: Cartago | F6: Heredia | G6: Guanacaste | H6: Puntarenas | I6: Limón
A8: Total | B8: =SUM(C8:I8) -> 142726 | C8: =SUM(C10:C21) -> 45396 | D8: =SUM(D10:D21) -> 29218 | E8: 12757 | F8: 12271 | G8: 11634 | H8: 15187 | I8: 16263
A10: Enero | B10: =SUM(C10:I10) -> 16822 | C10: 5614 | D10: 3301 | E10: 1316 | F10: 1486 | G10: 1197 | H10: 1770 | I10: 2138
A11: Febrero | B11: =SUM(C11:I11) -> 13392 | C11: 3754 | D11: 2675 | E11: 972 | F11: 1125 | G11: 1331 | H11: 1703 | I11: 1832
A12: Marzo | B12: 9087 | C12: 2958 | D12: 1772 | E12: 841 | F12: 734 | G12: 757 | H12: 1048 | I12: 977
A13: Abril | B13: 7603 | C13: 2545 | D13: 1495 | E13: 765 | F13: 657 | G13: 507 | H13: 870 | I13: 764
A14: Mayo | B14: 9842 | C14: 3010 | D14: 1956 | E14: 1059 | F14: 899 | G14: 782 | H14: 1014 | I14: 1122
A15: Junio | B15: 9194 | C15: 2957 | D15: 1774 | E15: 930 | F15: 812 | G15: 773 | H15: 915 | I15: 1033
A16: Julio | B16: 15016 | C16: 5044 | D16: 3310 | E16: 1368 | F16: 1285 | G16: 1200 | H16: 1376 | I16: 1433
A17: Agosto | B17: 9446 | C17: 3063 | D17: 1850 | E17: 965 | F17: 888 | G17: 773 | H17: 915 | I17: 992
A18: Setiembre | B18: 11212 | C18: 3626 | D18: 2337 | E18: 1077 | F18: 979 | G18: 852 | H18: 1131 | I18: 1210
A19: Octubre | B19: 14706 | C19: 4673 | D19: 3403 | E19: 1345 | F19: 1129 | G19: 1078 | H19: 1413 | I19: 1665
A20: Noviembre | B20: 13420 | C20: 4174 | D20: 2775 | E20: 1165 | F20: 1187 | G20: 1096 | H20: 1535 | I20: 1488
A21: Diciembre | B21: 12986 | C21: 3978 | D21: 2570 | E21: 954 | F21: 1090 | G21: 1288 | H21: 1497 | I21: 1609
A24: Fuente: Departamento Electoral y Coordinación de Servicios Regionales del Tribunal Supremo de Elecciones.

Sheet 20
A1: CUADRO 20
A2: COSTA RICA: CERTIFICACIONES SOLICITADAS
A3: DIGITALMENTE, POR TIPO DE SOLICITUD
A4: SEGÚN MES, AL 31 DE DICIEMBRE 2019
A6: Mes | B6: Total | C6: Tipo de solicitud
C7: Nacimiento | D7: Matrimonio | E7: Defunción | F7: No aparece matrimonio
A9: Total | B9: =SUM(C9:F9) -> 69581 | C9: =SUM(C11:C22) -> 48977 | D9: =SUM(D11:D22) -> 9797 | E9: =SUM(E11:E22) -> 3829 | F9: =SUM(F11:F22) -> 6978
A11: Enero | B11: =SUM(C11:F11) -> 6322 | C11: 4544 | D11: 833 | E11: 300 | F11: 645
A12: Febrero | B12: =SUM(C12:F12) -> 5649 | C12: 3969 | D12: 808 | E12: 282 | F12: 590
A13: Marzo | B13: 5297 | C13: 3624 | D13: 845 | E13: 269 | F13: 559
A14: Abril | B14: 4858 | C14: 3423 | D14: 720 | E14: 236 | F14: 479
A15: Mayo | B15: 5245 | C15: 3562 | D15: 829 | E15: 358 | F15: 496
A16: Junio | B16: 4769 | C16: 3347 | D16: 742 | E16: 265 | F16: 415
A17: Julio | B17: 5695 | C17: 4016 | D17: 811 | E17: 356 | F17: 512
A18: Agosto | B18: 6112 | C18: 4512 | D18: 794 | E18: 314 | F18: 492
A19: Setiembre | B19: 5661 | C19: 3878 | D19: 815 | E19: 404 | F19: 564
A20: Octubre | B20: 6781 | C20: 4559 | D20: 913 | E20: 396 | F20: 913
A21: Noviembre | B21: 6486 | C21: 4609 | D21: 866 | E21: 358 | F21: 653
A22: Diciembre | B22: 6706 | C22: 4934 | D22: 821 | E22: 291 | F22: 660
A25: Fuente: Departamento Civil del Tribunal Supremo de Elecciones.

Sheet 21
A1: CUADRO 21
A2: COSTA RICA: INGRESO DE SOLICITUDES DE DETERMINACIÓN DE PATERNIDAD
A3: POR PROVINCIA, SEGÚN MES, AL 31 DE DICIEMBRE 2019
A5: Mes | B5: Total | C5: San José | D5: Alajuela | E5: Cartago | F5: Heredia | G5: Guanacaste | H5: Puntarenas | I5: Limón | J5: Partido Especial 1/ | K5: Casos especiales 2/
A7: Total | B7: =SUM(B9:B20) -> 5845 | C7: =SUM(C9:C20) -> 1726 | D7: =SUM(D9:D20) -> 964 | E7: 406 | F7: 329 | G7: 507 | H7: 616 | I7: 835 | J7: =SUM(J9:J20) -> 339 | K7: =SUM(K9:K20) -> 123
A9: Enero | B9: =SUM(C9:K9) -> 534 | C9: 177 | D9: 67 | E9: 39 | F9: 33 | G9: 33 | H9: 63 | I9: 83 | J9: 32 | K9: 7
A10: Febrero | B10: 487 | C10: 123 | D10: 89 | E10: 32 | F10: 26 | G10: 32 | H10: 69 | I10: 94 | J10: 20 | K10: 2
A11: Marzo | B11: 535 | C11: 142 | D11: 117 | E11: 39 | F11: 20 | G11: 68 | H11: 43 | I11: 62 | J11: 31 | K11: 13
A12: Abril | B12: 359 | C12: 93 | D12: 58 | E12: 29 | F12: 27 | G12: 30 | H12: 33 | I12: 39 | J12: 50 | K12: 0
A13: Mayo | B13: 545 | C13: 136 | D13: 89 | E13: 32 | F13: 32 | G13: 75 | H13: 61 | I13: 78 | J13: 37 | K13: 5
A14: Junio | B14: 458 | C14: 128 | D14: 81 | E14: 27 | F14: 17 | G14: 32 | H14: 43 | I14: 83 | J14: 35 | K14: 12
A15: Julio | B15: 551 | C15: 179 | D15: 90 | E15: 44 | F15: 36 | G15: 45 | H15: 49 | I15: 69 | J15: 26 | K15: 13
A16: Agosto | B16: 511 | C16: 173 | D16: 69 | E16: 30 | F16: 19 | G16: 56 | H16: 38 | I16: 63 | J16: 54 | K16: 9
A17: Setiembre | B17: 493 | C17: 133 | D17: 81 | E17: 37 | F17: 28 | G17: 36 | H17: 71 | I17: 53 | J17: 35 | K17: 19
A18: Octubre | B18: 542 | C18: 204 | D18: 78 | E18: 44 | F18: 38 | G18: 35 | H18: 62 | I18: 74 | J18: 0 | K18: 7
A19: Noviembre | B19: 421 | C19: 136 | D19: 68 | E19: 23 | F19: 29 | G19: 30 | H19: 47 | I19: 75 | J19: 0 | K19: 13
A20: Diciembre | B20: 409 | C20: 102 | D20: 77 | E20: 30 | F20: 24 | G20: 35 | H20: 37 | I20: 62 | J20: 19 | K20: 23
A23: 1/ Inscripción de hijos o hijas de costarricenses nacidos en el extranjero.
A24: 2/ Casos que aun cuando no son trámites de Paternidad Responsable, se tramitan para efectos de otorgar cita de ADN, o casos en los que primero se necesita la Prueba de ADN, para proceder con la inscripción o no del nacimiento.
A26: Fuente: Sección de Inscripciones del Tribunal Supremo de Elecciones.

Sheet 22
A2: CUADRO 22
A3: COSTA RICA: INGRESO DE SOLICITUDES DE DETERMINACIÓN DE PATERNIDAD, POR MES
A4: SEGÚN NACIONALIDAD DE LOS PADRES, AL 31 DE DICIEMBRE 2019
A6: NACIONALIDAD | B6: TOTAL | C6: Enero | D6: Febrero | E6: Marzo | F6: Abril | G6: Mayo | H6: Junio | I6: Julio | J6: Agosto | K6: Setiembre | L6: Octubre | M6: Noviembre | N6: Diciembre
A8: TOTAL | B8: =B11+B15+B19+B23+B27+B31 -> 5845 | C8: =C11+C15+C19+C23+C27+C31 -> 534 | D8: 487 | E8: 535 | F8: =F11+F15+F19+F23+F27+F31 -> 359 | G8: 545 | H8: 458 | I8: 551 | J8: 511 | K8: 493 | L8: 542 | M8: 421 | N8: =N11+N15+N19+N23+N27+N31 -> 409
A10: Costa Rica
A11: Presunto padre | B11: =SUM(C11:N11) -> 4972 | C11: 465 | D11: 417 | E11: 443 | F11: 298 | G11: 454 | H11: 386 | I11: 480 | J11: 431 | K11: 419 | L11: 465 | M11: 356 | N11: 358
A12: Madre | B12: =SUM(C12:N12) -> 5073 | C12: 457 | D12: 428 | E12: 453 | F12: 316 | G12: 471 | H12: 396 | I12: 505 | J12: 453 | K12: 428 | L12: 453 | M12: 355 | N12: 358
A14: Nicaragua
A15: Presunto padre | B15: =SUM(C15:N15) -> 736 | C15: 61 | D15: 60 | E15: 83 | F15: 49 | G15: 81 | H15: 57 | I15: 66 | J15: 55 | K15: 55 | L15: 68 | M15: 57 | N15: 44
A16: Madre | B16: =SUM(C16:N16) -> 715 | C16: 74 | D16: 54 | E16: 79 | F16: 41 | G16: 68 | H16: 56 | I16: 42 | J16: 52 | K16: 52 | L16: 83 | M16: 64 | N16: 50
A18: Colombia
A19: Presunto padre | B19: =SUM(C19:N19) -> 26 | C19: 0 | D19: 2 | E19: 2 | F19: 1 | G19: 3 | H19: 1 | I19: 1 | J19: 4 | K19: 2 | L19: 2 | M19: 5 | N19: 3
A20: Madre | B20: =SUM(C20:N20) -> 4 | C20: 1 | D20: 0 | E20: 0 | F20: 0 | G20: 0 | H20: 0 | I20: 0 | J20: 1 | K20: 2 | L20: 0 | M20: 0 | N20: 0
A22: Panamá
A23: Presunto padre | B23: =SUM(C23:N23) -> 26 | C23: 1 | D23: 5 | E23: 1 | F23: 1 | G23: 2 | H23: 6 | I23: 1 | J23: 4 | K23: 3 | L23: 2 | M23: 0 | N23: 0
A24: Madre | B24: =SUM(C24:N24) -> 14 | C24: 1 | D24: 1 | E24: 2 | F24: 2 | G24: 1 | H24: 1 | I24: 0 | J24: 2 | K24: 1 | L24: 2 | M24: 1 | N24: 0
A26: Otros
A27: Presunto padre | B27: =SUM(C27:N27) -> 52 | C27: 7 | D27: 2 | E27: 6 | F27: 1 | G27: 3 | H27: 4 | I27: 2 | J27: 9 | K27: 9 | L27: 3 | M27: 3 | N27: 3
A28: Madre | B28: =SUM(C28:N28) -> 23 | C28: 0 | D28: 3 | E28: 1 | F28: 0 | G28: 2 | H28: 2 | I28: 1 | J28: 3 | K28: 6 | L28: 3 | M28: 1 | N28: 1
A30: No Indica
A31: Presunto padre | B31: =SUM(C31:N31) -> 33 | C31: 0 | D31: 1 | E31: 0 | F31: 9 | G31: 2 | H31: 4 | I31: 1 | J31: 8 | K31: 5 | L31: 2 | M31: 0 | N31: 1
A32: Madre | B32: =SUM(C32:N32) -> 16 | C32: 1 | D32: 1 | E32: 0 | F32: 0 | G32: 3 | H32: 3 | I32: 3 | J32: 0 | K32: 4 | L32: 1 | M32: 0 | N32: 0
A35: Fuente: Sección de Inscripciones del Tribunal Supremo de Elecciones.

Sheet 23
A1: CUADRO 23
A2: COSTA RICA: RESULTADO DE PRUEBAS DE ADN PARA
A3: DETERMINAR LA PATERNIDAD, SEGÚN MES
A4: AL 31 DE DICIEMBRE 2019
A6: Mes | B6: Total | D6: Absoluto | I6: Porcentaje
D7: Positivo | F7: Negativo | I7: Positivo | K7: Negativo
A9: Total | B9: =SUM(B11:B22) -> 2541 | D9: =SUM(D11:D22) -> 1953 | E9: =SUM(E11:E22) -> 0 | F9: =SUM(F11:F22) -> 588 | I9: =+D9/B9*100 -> 76.85950413 | K9: =+F9/B9*100 -> 23.14049587
A11: Enero | B11: =SUM(D11:F11) -> 86 | D11: 67 | F11: 19 | I11: =+D11/B11*100 -> 77.90697674 | K11: =+F11/B11*100 -> 22.09302326
A12: Febrero | B12: =SUM(D12:F12) -> 250 | D12: 192 | F12: 58 | I12: =+D12/B12*100 -> 76.8 | K12: =+F12/B12*100 -> 23.2
A13: Marzo | B13: 250 | D13: 192 | F13: 58 | I13: 76.8 | K13: 23.2
A14: Abril | B14: 391 | D14: 299 | F14: 92 | I14: 76.47058824 | K14: 23.52941176
A15: Mayo | B15: 232 | D15: 171 | F15: 61 | I15: 73.70689655 | K15: 26.29310345
A16: Junio | B16: 219 | D16: 176 | F16: 43 | I16: 80.3652968 | K16: 19.6347032
A17: Julio | B17: 148 | D17: 120 | F17: 28 | I17: 81.08108108 | K17: 18.91891892
A18: Agosto | B18: 231 | D18: 179 | F18: 52 | I18: 77.48917749 | K18: 22.51082251
A19: Setiembre | B19: 229 | D19: 178 | F19: 51 | I19: 77.72925764 | K19: 22.27074236
A20: Octubre | B20: =SUM(D20:F20) -> 166 | D20: 131 | F20: 35 | I20: =+D20/B20*100 -> 78.91566265 | K20: =+F20/B20*100 -> 21.08433735
A21: Noviembre | B21: =SUM(D21:F21) -> 229 | D21: 173 | F21: 56 | I21: =+D21/B21*100 -> 75.54585153 | K21: =+F21/B21*100 -> 24.45414847
A22: Diciembre | B22: =SUM(D22:F22) -> 110 | D22: 75 | F22: 35 | I22: =+D22/B22*100 -> 68.18181818 | K22: =+F22/B22*100 -> 31.81818182
A25: Fuente: Sección de Inscripciones del Tribunal Supremo de Elecciones.

Sheet 24
A1: CUADRO 24
A2: COSTA RICA: CANTIDAD DE RESOLUCIONES, POR TIPO DE RESOLUCIÓN, SEGÚN MES
A3: AL 31 DE DICIEMBRE 2019
A5: Mes | B5: Total | C5: Tipo de resolución
C6: Electorales | D6: Inscripciones | E6: Municipales | F6: Naturalizaciones | G6: Ocursos, Paternidad y Otros | H6: Procedimientos Administrativos
A8: Total | B8: =SUM(C8:H8) -> 9044 | C8: =SUM(C10:C21) -> 317 | D8: 1103 | E8: 95 | F8: 7018 | G8: 138 | H8: 373
A10: Enero | B10: =SUM(C10:H10) -> 878 | C10: 16 | D10: 151 | E10: 2 | F10: 681 | G10: =4+2 -> 6 | H10: 22
A11: Febrero | B11: =SUM(C11:H11) -> 908 | C11: 23 | D11: 101 | E11: 10 | F11: 733 | G11: =12+1 -> 13 | H11: 28
A12: Marzo | B12: 630 | C12: 22 | D12: 99 | E12: 15 | F12: 457 | G12: =12+2 -> 14 | H12: 23
A13: Abril | B13: 456 | C13: 17 | D13: 27 | E13: 7 | F13: 373 | G13: =2+0 -> 2 | H13: 30
A14: Mayo | B14: 796 | C14: 21 | D14: 87 | E14: 11 | F14: 618 | G14: =22+2 -> 24 | H14: 35
A15: Junio | B15: 656 | C15: 16 | D15: 88 | E15: 7 | F15: 511 | G15: =11+0 -> 11 | H15: 23
A16: Julio | B16: 592 | C16: 24 | D16: 42 | E16: 9 | F16: 463 | G16: =24+4 -> 28 | H16: 26
A17: Agosto | B17: 859 | C17: 19 | D17: 93 | E17: 9 | F17: 672 | G17: =5+6 -> 11 | H17: 55
A18: Setiembre | B18: 782 | C18: 24 | D18: 93 | E18: 15 | F18: 594 | G18: =11+1 -> 12 | H18: 44
A19: Octubre | B19: 1118 | C19: 26 | D19: 107 | E19: 7 | F19: 924 | G19: =4+2 -> 6 | H19: 48
A20: Noviembre | B20: 709 | C20: 36 | D20: 68 | E20: 1 | F20: 575 | G20: =3+0 -> 3 | H20: 26
A21: Diciembre | B21: 660 | C21: 73 | D21: 147 | E21: 2 | F21: 417 | G21: =7+1 -> 8 | H21: 13
A24: Fuente: Secretaría del Tribunal Supremo de Elecciones.

Sheet 25
A2: CUADRO 25
A3: COSTA RICA: DONACIONES REPORTADAS ANTE EL TRIBUNAL SUPREMO DE ELECCIONES
A4: SEGÚN PARTIDO POLÍTICO 1/
A5: - Cifras en colones, al 31 de diciembre de 2019 -
A6: PARTIDO POLÍTICO | B6: CICLO PRESIDENCIAL2/ | C6: CICLO MUNICIPAL | D6: OCTUBRE A DICIEMBRE, 2019
C7: PERIODO NO ELECTORAL 2018-2019 3/
A9: TOTAL | B9: =SUM(B11:B62) -> 3262445890 | C9: =SUM(C11:C62) -> 358050955.1 | D9: =SUM(D11:D62) -> 174128194.9
A11: ACCESIBILIDAD SIN EXCLUSION | B11: 78834103.99 | C11: 0 | D11: 0
A12: ACCION CIUDADANA | B12: 134080102.1 | C12: 93388188.02 | D12: 15748140.11
A13: ACTUEMOS YA | B13: 1905000 | C13: 690000 | D13: 2637775
A14: ALIANZA DEMOCRATA CRISTIANA | B14: 15737782.4 | C14: 1920937 | D14: 13098480
A15: ALIANZA PATRIOTICA | B15: 270000 | C15: 0 | D15: 0
A16: ALIANZA POR SAN JOSE | B16: 23193361.74 | C16: 2804287 | D16: 4409250
A17: ALIANZA SOCIAL POR LA UNION | B17: 101000 | C17: 0 | D17: 0
A18: AUTENTICO LIMONENSE | B18: 4466003.6 | C18: 0 | D18: 105001
A19: AUTENTICO SIQUIRREÑO | B19: 625000 | C19: 6000 | D19: 0
A20: AVANCE MONTES DE OCA | B20: 2527185 | C20: 353120 | D20: 1128000
A21: BARVA UNIDA | B21: 0 | C21: 20000 | D21: 1231000
A22: CANTONAL DE CARRILLO | B22: 0 | C22: 0 | D22: 1770000
A23: CURRIDABAT SIGLO XXI | B23: 6207688.65 | C23: 6502388 | D23: 1240933
A24: DE LOS TRABAJADORES | B24: 2514268.7 | C24: 5669491.43 | D24: 0
A25: DE LOS TRANSPORTISTAS | B25: 1092000 | C25: 0 | D25: 0
A26: DEL SOL | B26: 0 | C26: 115000 | D26: 0
A27: DESARROLLO TALAMANQUEÑO | B27: 0 | C27: 856000 | D27: 0
A28: ECOLOGICO COMUNAL COSTARRICENSE | B28: 1391647 | C28: 0 | D28: 0
A29: FRENTE AMPLIO | B29: 146506688.8 | C29: 47464028.73 | D29: 10367621
A30: HUMANISTA DE MONTES DE OCA | B30: 100000 | C30: 0 | D30: 0
A31: INTEGRACION NACIONAL | B31: 37493261.6 | C31: 17841788.67 | D31: 13143350
A32: JUSTICIA SAOCIAL COSTARRICENSE | B32: 0 | C32: 0 | D32: 145000
A33: LIBERACION NACIONAL | B33: 2418866379 | C33: 62318112 | D33: 29597854.14
A34: LIBERAL PROGRESISTA | B34: 7244825 | C34: 2150601 | D34: 255000
A35: MOVIMIENTO AVANCE SANTO DOMINGO | B35: 2894000 | C35: 0 | D35: 6520000
A36: MOVIMIENTO LIBERTARIO | B36: 50907473.65 | C36: 0 | D36: 0
A37: NUESTRO PUEBLO | B37: 0 | C37: 0 | D37: 2965347.72
A38: NUEVA GENERACION | B38: 34010213.5 | C38: 2481000 | D38: 5655077
A39: NUEVA REPUBLICA | B39: 0 | C39: 0 | D39: 5396849
A40: PALMARES PRIMERO | B40: 0 | C40: 0 | D40: 6420000
A41: NUEVO PARTIDO SOCIALISTA | B41: 54589 | C41: 0 | D41: 0
A42: PROGRESER | B42: 0 | C42: 1110000 | D42: 8120371.9
A43: PURISCAL EN MARCHA | B43: 0 | C43: 0 | D43: 5000
A44: RECUPERANDO VALORES | B44: 360000 | C44: 0 | D44: 0
A45: RENOVACION CARTAGO | B45: 700000 | C45: 0 | D45: 0
A46: RENOVACION COSTARRICENSE | B46: 18480451.84 | C46: 765500 | D46: 0
A47: RENOVEMOS ALAJUELA | B47: 7584280 | C47: 2081000 | D47: 533000
A48: REPUBLICANO SOCIAL CRISTIANO | B48: 27076315 | C48: 1557970 | D48: 0
A49: RESCATE CANTONAL LA UNION | B49: 0 | C49: 496000 | D49: 170000
A50: RESTAURACION NACIONAL | B50: 53677445.4 | C50: 76842504.71 | D50: 5713048.45
A51: SENTIR HEREDIA | B51: 0 | C51: 0 | D51: 783820
A52: SOMOS MORAVIA | B52: 0 | C52: 0 | D52: 4643780
A53: SOMOS SARCHI | B53: 0 | C53: 0 | D53: 870000
A54: TERRA ESCAZU | B54: 0 | C54: 486465 | D54: 16008739.35
A55: TURRIALBA PRIMERO | B55: 0 | C55: 0 | D55: 668000
A56: TODO POR FLORES | B56: 400000 | C56: 0 | D56: 0
A57: TODOS | B57: 3851000 | C57: 0 | D57: 0
A58: UNIDAD SOCIAL CRISTIANA | B58: 171212824.4 | C58: 29915662.58 | D58: 12685303.63
A59: UNIDOS PARA EL DESARROLLO | B59: 0 | C59: 0 | D59: 1432453.56
A60: UNION GUARQUEÑO | B60: 0 | C60: 0 | D60: 660000
A61: UNION GUANACASTECA | B61: 450000 | C61: 0 | D61: 0
A62: VAMOS | B62: 7631000 | C62: 214911 | D62: 0
A64: Notas:
A65: 1/ El detalle de cada contribuyente se puede consultar en http://www.tse.go.cr/contribuciones_partidos.htm
A66: 2/ El Ciclo Presidencial abarca el periodo comprendido entre el 24 de marzo de 2016 y el 21 de marzo de 2018.
A67: 3/ El Periodo no Electoral del Ciclo Municipal comprende del 22 de marzo de 2018 al 01 de octubre de 2019.
A70: Fuente: Reportes de contribuciones remitidos periódicamente por los partidos políticos al Departamento de Financiamiento de Partidos Políticos.
